{"text_format":"1","workbook":"xlsx","n_sheets":5,"sheets":["ED OTC - SET UP","ED OTC - COMPLETION","Accomplishmets-Jobs","Validation","Data Validation"],"not_rendered":{"charts":0,"images":53,"macros":1,"external_links":2,"defined_names":72,"comments":3,"pivot_tables":0},"unopened":[],"bounds":{"document_bytes":16777216,"sheet_cells":100000,"rows_first":2000,"rows_last":500,"rows_between":2000,"halvings":0,"cell_chars":16384,"cell_head_chars":4096},"cells_cut":0,"cells_raw":0,"read":"whole","date_system":"1900"}

{"sheet":"ED OTC - SET UP","index":0,"n_rows":289,"n_cols":82,"rows_kept":289,"cut":false,"hidden":false,"merged":[[184,69,184,72],[186,42,186,44],[188,13,188,65],[258,29,258,50],[259,29,259,50],[260,29,260,50],[258,54,258,61],[259,54,259,61],[260,54,260,61],[256,65,256,76],[260,67,260,74],[213,14,213,63],[213,65,213,76],[231,14,231,63],[231,65,231,76],[249,14,249,63],[249,65,249,76],[256,29,256,50],[256,52,256,63],[229,14,229,33],[229,35,229,46],[229,48,229,53],[229,55,229,63],[229,65,229,76],[224,14,227,33],[224,35,227,46],[224,48,227,53],[1,81,98,83],[99,81,196,83],[197,81,285,83],[288,11,289,79],[32,11,32,23],[39,56,39,71],[5,11,5,79],[11,11,11,36],[51,47,51,77],[52,47,53,77],[46,13,46,43],[80,52,81,59],[80,38,81,50],[65,47,65,63],[48,13,48,43],[54,13,54,43],[46,47,46,51],[55,13,56,43],[61,13,61,43],[39,72,39,79],[42,11,44,17],[48,47,48,77],[1,55,3,60],[25,73,27,79],[4,11,4,79],[12,62,13,67],[12,69,13,72],[12,73,13,79],[15,69,19,72],[15,73,19,79],[25,63,27,66],[25,70,27,72],[7,11,10,54],[9,56,11,79],[1,11,3,22],[1,23,3,52],[1,61,3,79],[25,56,27,62],[7,56,8,79],[12,11,14,54],[12,56,13,61],[35,56,35,67],[35,68,35,79],[36,56,37,67],[36,68,37,79],[36,11,36,13],[34,11,34,20],[34,56,34,79],[31,63,31,79],[28,56,30,79],[31,56,31,62],[31,26,31,54],[31,11,31,23],[34,21,34,54],[35,21,36,54],[16,11,28,54],[15,56,19,61],[15,62,19,67],[36,14,36,20],[38,21,38,54],[39,21,40,54],[62,47,63,77],[32,56,32,62],[32,63,32,79],[46,53,46,77],[51,13,51,43],[52,13,53,43],[61,47,61,76],[55,65,56,77],[35,11,35,20],[38,11,38,20],[54,65,54,77],[62,13,63,43],[55,47,56,63],[54,47,54,63],[49,47,50,77],[40,11,40,13],[40,14,40,20],[40,72,40,79],[42,18,44,53],[58,54,59,77],[58,13,59,53],[49,13,50,43],[39,11,39,20],[66,46,66,63],[65,65,65,77],[65,36,65,44],[65,13,65,30],[66,65,66,77],[66,36,66,44],[83,13,83,34],[80,65,81,73],[73,18,75,53],[73,54,75,79],[77,29,77,77],[66,12,66,34],[68,15,69,36],[42,54,44,79],[79,61,79,77],[79,13,79,36],[83,61,83,77],[83,36,83,59],[68,13,69,14],[77,13,77,28],[79,38,79,47],[79,52,79,59],[40,56,40,71],[84,13,84,34],[73,11,75,17],[80,13,81,36],[217,53,217,63],[86,11,88,17],[86,18,88,52],[86,53,88,79],[139,13,140,19],[139,21,140,27],[142,13,143,19],[142,21,143,27],[198,53,200,79],[198,18,200,52],[84,61,84,77],[211,35,211,46],[211,48,211,53],[211,55,211,63],[211,65,211,76],[215,14,215,63],[84,36,84,59],[211,14,211,33],[172,11,174,17],[106,29,107,77],[109,13,110,19],[280,55,280,65],[280,67,280,76],[283,52,285,65],[283,67,285,76],[274,14,274,35],[274,37,274,65],[274,67,274,76],[276,14,276,35],[276,37,276,65],[276,67,276,76],[278,14,278,35],[278,37,278,65],[278,67,278,76],[262,13,264,35],[266,14,266,35],[266,37,266,65],[266,67,266,76],[215,65,215,76],[242,14,245,33],[242,35,245,46],[242,48,245,53],[242,55,245,63],[242,65,245,76],[247,14,247,33],[247,35,247,46],[247,48,247,53],[247,55,247,63],[247,65,247,76],[251,14,251,63],[251,65,251,76],[253,53,253,63],[253,65,253,76],[235,53,235,63],[235,65,235,76],[238,13,240,33],[233,14,233,63],[233,65,233,76],[268,14,268,35],[268,37,268,65],[268,67,268,76],[270,14,270,35],[270,37,270,65],[270,67,270,76],[272,14,272,35],[272,37,272,65],[272,67,272,76],[224,55,227,63],[165,13,165,24],[165,26,165,77],[167,13,167,24],[167,26,167,33],[167,34,167,50],[167,53,167,60],[167,61,167,77],[169,13,169,24],[169,26,169,77],[198,11,200,17],[202,13,204,33],[206,14,209,33],[206,35,209,46],[206,48,209,53],[206,55,209,63],[206,65,209,76],[202,48,204,76],[224,65,227,76],[172,18,174,52],[172,53,174,79],[188,66,188,68],[176,76,176,77],[186,13,186,41],[109,21,110,27],[95,39,95,42],[95,50,95,53],[95,56,95,59],[97,39,97,42],[217,65,217,76],[220,13,222,33],[176,13,176,33],[182,13,182,26],[182,27,182,41],[182,43,182,52],[182,54,182,67],[184,13,184,29],[184,31,184,44],[184,47,184,67],[157,26,157,33],[157,34,157,77],[159,13,159,24],[159,26,159,77],[193,12,196,78],[145,13,146,19],[145,21,146,27],[112,13,113,19],[112,21,113,27],[90,22,90,48],[100,11,102,17],[100,18,102,52],[100,53,102,79],[104,13,104,27],[104,65,104,77],[91,22,93,31],[94,22,95,31],[96,22,98,31],[91,49,92,65],[97,50,97,53],[97,56,97,59],[97,61,97,64],[91,32,92,48],[93,55,93,65],[95,33,95,36],[95,44,95,47],[95,61,95,64],[97,33,97,36],[97,44,97,47],[93,32,93,37],[93,38,93,48],[93,49,93,54],[115,21,116,27],[118,13,119,19],[118,21,119,27],[121,13,122,19],[121,21,122,27],[124,13,125,19],[124,21,125,27],[127,13,128,19],[127,21,128,27],[104,58,104,64],[104,48,104,50],[104,51,104,57],[163,61,163,77],[163,13,163,24],[161,34,161,77],[149,28,150,34],[149,39,150,57],[149,59,150,65],[149,13,150,26],[153,11,155,17],[153,18,155,52],[153,53,155,79],[161,26,161,33],[130,13,131,19],[130,21,131,27],[133,13,134,19],[133,21,134,27],[136,13,137,19],[136,21,137,27],[163,26,163,33],[163,34,163,50],[163,53,163,60],[115,13,116,19]]}
[]
[null,null,null,null,null,null,null,null,null,null,null,"Jurisdiction Name:",null,null,null,null,null,null,null,null,null,null,null,null,null,null,null,null,null,null,null,null,null,null,null,null,null,null,null,null,null,null,null,null,null,null,null,null,null,null,null,null,null,null,null,"Contract #",null,null,null,null,null,null,null,null,null,null,null,null,null,null,null,null,null,null,null,null,null,null,null,null,null,"Page 1"]
[]
[]
[null,null,null,null,null,null,null,null,null,null,null,"STATE OF CALIFORNIA - CDBG PROGRAM\nCDBG Program"]
[null,null,null,null,null,null,null,null,null,null,null,"Project Setup & Completion Report"]
[]
[null,null,null,null,null,null,null,null,null,null,null,"ED: Over The Counter Project",null,null,null,null,null,null,null,null,null,null,null,null,null,null,null,null,null,null,null,null,null,null,null,null,null,null,null,null,null,null,null,null,null,null,null,null,null,null,null,null,null,null,null,null,"FOR CDBG USE ONLY"]
[]
[null,null,null,null,null,null,null,null,null,null,null,null,null,null,null,null,null,null,null,null,null,null,null,null,null,null,null,null,null,null,null,null,null,null,null,null,null,null,null,null,null,null,null,null,null,null,null,null,null,null,null,null,null,null,null,null,"Project Completion Report"]
[]
[]
[null,null,null,null,null,null,null,null,null,null,null,"Complete this form as a Setup Report, a Completion Report or a Setup and Completion Report and submit an electronic copy to your CDBG Program Representative.",null,null,null,null,null,null,null,null,null,null,null,null,null,null,null,null,null,null,null,null,null,null,null,null,null,null,null,null,null,null,null,null,null,null,null,null,null,null,null,null,null,null,null,null,"Mgr Initials:",null,null,null,null,null,null,null,null,null,null,null,null,"Date"]
[]
[]
[null,null,null,null,null,null,null,null,null,null,null,null,null,null,null,null,null,null,null,null,null,null,null,null,null,null,null,null,null,null,null,null,null,null,null,null,null,null,null,null,null,null,null,null,null,null,null,null,null,null,null,null,null,null,null,null,"Rep Initials:",null,null,null,null,null,null,null,null,null,null,null,null,"Date"]
[null,null,null,null,null,null,null,null,null,null,null,"Department of Housing and Community Development\nCDBG Program \nP.O. Box 952054\nSacramento CA, 94252-2054"]
[]
[]
[]
[]
[]
[]
[]
[]
[null,null,null,null,null,null,null,null,null,null,null,null,null,null,null,null,null,null,null,null,null,null,null,null,null,null,null,null,null,null,null,null,null,null,null,null,null,null,null,null,null,null,null,null,null,null,null,null,null,null,null,null,null,null,null,null,"Fiscal Initials",null,null,null,null,null,null," ",null,null,null,null,null,null,"Date:"]
[]
[]
[null,null,null,null,null,null,null,null,null,null,null,null,null,null,null,null,null,null,null,null,null,null,null,null,null,null,null,null,null,null,null,null,null,null,null,null,null,null,null,null,null,null,null,null,null,null,null,null,null,null,null,null,null,null,null,null,"Program Income"]
[]
[]
[null,null,null,null,null,null,null,null,null,null,null,"PI Only Funding",null,null,null,null,null,null,null,null,null,null,null,null,null,null,"All CDBG funds used in this project",null,null,null,null,null,null,null,null,null,null,null,null,null,null,null,null,null,null,null,null,null,null,null,null,null,null,null,null,null,"PI Receipt #"]
[null,null,null,null,null,null,null,null,null,null,null,"Select Option",null,null,null,null,null,null,null,null,null,null,null,null,null,null,null,null,null,null,null,null,null,null,null,null,null,null,null,null,null,null,null,null,null,null,null,null,null,null,null,null,null,null,null,null,"PI Voucher #"]
[]
[null,null,null,null,null,null,null,null,null,null,null,"Setup",null,null,null,null,null,null,null,null,null,{"$f":"IF(L36=\"revised\",\"If Revised, Why?\",\"\")","v":""},null,null,null,null,null,null,null,null,null,null,null,null,null,null,null,null,null,null,null,null,null,null,null,null,null,null,null,null,null,null,null,null,null,null,"CDBG-Assigned Numbers"]
[null,null,null,null,null,null,null,null,null,null,null,"Select Option",null,null,null,null,null,null,null,null,null,null,null,null,null,null,null,null,null,null,null,null,null,null,null,null,null,null,null,null,null,null,null,null,null,null,null,null,null,null,null,null,null,null,null,null,"CDBG Project Number",null,null,null,null,null,null,null,null,null,null,null,"IDIS Activity Number"]
[null,null,null,null,null,null,null,null,null,null,null,"Date"]
[null,null,null,null,null,null,null,null,null,null,null,null,null,null,null,null,null,null,null,null,null,""]
[null,null,null,null,null,null,null,null,null,null,null,"Completion",null,null,null,null,null,null,null,null,null,{"$f":"IF(L40=\"Cancelled\",\"If Cancelled, Why?\",IF(L40=\"revised\",\"If Revised, Why?\",\"\"))","v":""}]
[null,null,null,null,null,null,null,null,null,null,null,"Select Option",null,null,null,null,null,null,null,null,null,null,null,null,null,null,null,null,null,null,null,null,null,null,null,null,null,null,null,null,null,null,null,null,null,null,null,null,null,null,null,null,null,null,null,null,"Proposed completion MM/YY"]
[null,null,null,null,null,null,null,null,null,null,null,"Date",null,null,null,null,null,null,null,null,null,null,null,null,null,null,null,null,null,null,null,null,null,null,null,null,null,null,null,null,null,null,null,null,null,null,null,null,null,null,null,null,null,null,null,null,"Proposed # of Beneficiaries"]
[]
[null,null,null,null,null,null,null,null,null,null,null,"Part A ",null,null,null,null,null,null,"JURISDICTION INFORMATION & PREPARER",null,null,null,null,null,null,null,null,null,null,null,null,null,null,null,null,null,null,null,null,null,null,null,null,null,null,null,null,null,null,null,null,null,null,null,"REQUIRED"]
[]
[]
[]
[null,null,null,null,null,null,null,null,null,null,null,null,null,"Jurisdiction Contact Information",null,null,null,null,null,null,null,null,null,null,null,null,null,null,null,null,null,null,null,null,null,null,null,null,null,null,null,null,null,null,null,null,null,"Preparer",null,null,null,null,null,"Select Option"]
[]
[null,null,null,null,null,null,null,null,null,null,null,null,null,"1a. Name (Contact Person)",null,null,null,null,null,null,null,null,null,null,null,null,null,null,null,null,null,null,null,null,null,null,null,null,null,null,null,null,null,null,null,null,null,"2a. Preparer's Name"]
[]
[]
[null,null,null,null,null,null,null,null,null,null,null,null,null,"1b. E-Mail",null,null,null,null,null,null,null,null,null,null,null,null,null,null,null,null,null,null,null,null,null,null,null,null,null,null,null,null,null,null,null,null,null,"2b. Organization (if not grantee)"]
[]
[]
[null,null,null,null,null,null,null,null,null,null,null,null,null,"1c. Phone/Direct Line",null,null,null,null,null,null,null,null,null,null,null,null,null,null,null,null,null,null,null,null,null,null,null,null,null,null,null,null,null,null,null,null,null,"2c. E-Mail",null,null,null,null,null,null,null,null,null,null,null,null,null,null,null,null,null,"2d. Phone/Direct Line"]
[]
[]
[]
[null,null,null,null,null,null,null,null,null,null,null,null,null,"Subrecipient Information (Only)",null,null,null,null,null,null,null,null,null,null,null,null,null,null,null,null,null,null,null,null,null,null,null,null,null,null,null,null,null,null,null,null,null,null,null,null,null,null,null,null,"REQUIRED if applicable"]
[]
[]
[null,null,null,null,null,null,null,null,null,null,null,null,null,"3a. Organization name",null,null,null,null,null,null,null,null,null,null,null,null,null,null,null,null,null,null,null,null,null,null,null,null,null,null,null,null,null,null,null,null,null,"3b. Complete address"]
[]
[]
[]
[null,null,null,null,null,null,null,null,null,null,null,null,null,"3c. Organization is categorized as:",null,null,null,null,null,null,null,null,null,null,null,null,null,null,null,null,null,null,null,null,null,null,"3d. DUNS number",null,null,null,null,null,null,null,null,null,null,"3e. E-Mail",null,null,null,null,null,null,null,null,null,null,null,null,null,null,null,null,null,"3f. Phone/Direct Line"]
[null,null,null,null,null,null,null,null,null,null,null,null,"Select Option"]
[]
[null,null,null,null,null,null,null,null,null,null,null,null,null,"3g. ",null,"Check all that applies to this organization"]
[]
[]
[]
[]
[null,null,null,null,null,null,null,null,null,null,null,"Part B ",null,null,null,null,null,null,"PROJECT & ACTIVITY INFORMATION",null,null,null,null,null,null,null,null,null,null,null,null,null,null,null,null,null,null,null,null,null,null,null,null,null,null,null,null,null,null,null,null,null,null,null,"REQUIRED"]
[]
[]
[]
[null,null,null,null,null,null,null,null,null,null,null,null,null,"1a. Name of Project"]
[]
[null,null,null,null,null,null,null,null,null,null,null,null,null,"1b. Project Service Address",null,null,null,null,null,null,null,null,null,null,null,null,null,null,null,null,null,null,null,null,null,null,null,null,"1c. City",null,null,null,null,null,null,null,null,null,null,null,null,null,"1d. Zip Code",null,null,null,null,null,null,null,null,"CDBG Project Amount (Incl AD)"]
[null,null,null,null,null,null,null,null,null,null,null,null,null,null,null,null,null,null,null,null,null,null,null,null,null,null,null,null,null,null,null,null,null,null,null,null,null,null,null,null,null,null,null,null,null,null,null,null,null,null,null,null,null,null,null,null,null,null,null,null,null,null,null,null,null,{"$f":"SUM(BN218,BN236,BN254)","v":0}]
[]
[]
[null,null,null,null,null,null,null,null,null,null,null,null,null,"2. National Objective",null,null,null,null,null,null,null,null,null,null,null,null,null,null,null,null,null,null,null,null,null,null,"3. Activity & Matrix Code",null,null,null,null,null,null,null,null,null,null,null,null,null,null,null,null,null,null,null,null,null,null,null,null,"4. Accomplishment Type"]
[null,null,null,null,null,null,null,null,null,null,null,null,null,"Select Option",null,null,null,null,null,null,null,null,null,null,null,null,null,null,null,null,null,null,null,null,null,null,"Select Option",null,null,null,null,null,null,null,null,null,null,null,null,null,null,null,null,null,null,null,null,null,null,null,null,"Select Option"]
[]
[null,null,null,null,null,null,null,null,null,null,null," Part C ",null,null,null,null,null,null,"PROPOSED JOB CREATION/RETENTION",null,null,null,null,null,null,null,null,null,null,null,null,null,null,null,null,null,null,null,null,null,null,null,null,null,null,null,null,null,null,null,null,null,null,{"$f":"IF(AND('ED OTC - SET UP'!N85=Validation!$D$9,'ED OTC - SET UP'!$AK$85=Validation!$D$31,'ED OTC - SET UP'!$BJ$85=Validation!$F$36),\"NOT REQUIRED\",IF(AND('ED OTC - SET UP'!N85=Validation!$D$9,'ED OTC - SET UP'!$AK$85=Validation!$D$32,'ED OTC - SET UP'!$BJ$85=Validation!$F$36),\"NOT REQUIRED\",IF(AND('ED OTC - SET UP'!N85=Validation!$D$9,'ED OTC - SET UP'!$AK$85=Validation!$D$33,'ED OTC - SET UP'!$BJ$85=Validation!$F$36),\"NOT REQUIRED\",IF(AND('ED OTC - SET UP'!N85=Validation!$D$9,'ED OTC - SET UP'!$AK$85=Validation!$D$34,'ED OTC - SET UP'!$BJ$85=Validation!$F$36),\"NOT REQUIRED\",IF(AND('ED OTC - SET UP'!N85=Validation!$D$9,'ED OTC - SET UP'!$AK$85=Validation!$D$36,'ED OTC - SET UP'!$BJ$85=Validation!$F$36),\"NOT REQUIRED\",IF(AND('ED OTC - SET UP'!N85=Validation!$D$9,'ED OTC - SET UP'!$AK$85=Validation!$D$32,'ED OTC - SET UP'!$BJ$85=Validation!$F$38),\"NOT REQUIRED\",IF(AND('ED OTC - SET UP'!N85=Validation!$D$10,'ED OTC - SET UP'!$AK$85=Validation!$D$31,'ED OTC - SET UP'!$BJ$85=Validation!$F$37),\"REQUIRED\",IF(AND('ED OTC - SET UP'!N85=Validation!$D$10,'ED OTC - SET UP'!$AK$85=Validation!$D$32,'ED OTC - SET UP'!$BJ$85=Validation!$F$36),\"REQUIRED\",IF(AND('ED OTC - SET UP'!N85=Validation!$D$10,'ED OTC - SET UP'!$AK$85=Validation!$D$32,'ED OTC - SET UP'!$BJ$85=Validation!$F$38),\"REQUIRED\",IF(AND('ED OTC - SET UP'!N85=Validation!$D$10,'ED OTC - SET UP'!$AK$85=Validation!$D$33,'ED OTC - SET UP'!$BJ$85=Validation!$F$37),\"REQUIRED\",IF(AND('ED OTC - SET UP'!N85=Validation!$D$10,'ED OTC - SET UP'!$AK$85=Validation!$D$34,'ED OTC - SET UP'!$BJ$85=Validation!$F$37),\"REQUIRED\",IF(AND('ED OTC - SET UP'!N85=Validation!$D$10,'ED OTC - SET UP'!$AK$85=Validation!$D$36,'ED OTC - SET UP'!$BJ$85=Validation!$F$37),\"REQUIRED\",IF(AND('ED OTC - SET UP'!N85=Validation!$D$11,'ED OTC - SET UP'!$AK$85=Validation!$D$31,'ED OTC - SET UP'!$BJ$85=Validation!$F$36),\"NOT REQUIRED\",IF(AND('ED OTC - SET UP'!N85=Validation!$D$11,'ED OTC - SET UP'!$AK$85=Validation!$D$32,'ED OTC - SET UP'!$BJ$85=Validation!$F$36),\"NOT REQUIRED\",IF(AND('ED OTC - SET UP'!N85=Validation!$D$11,'ED OTC - SET UP'!$AK$85=Validation!$D$32,'ED OTC - SET UP'!$BJ$85=Validation!$F$38),\"NOT REQUIRED\",IF(AND('ED OTC - SET UP'!N85=Validation!$D$11,'ED OTC - SET UP'!$AK$85=Validation!$D$34,'ED OTC - SET UP'!$BJ$85=Validation!$F$36),\"NOT REQUIRED\",IF(AND(N85=Validation!D10,'ED OTC - SET UP'!AK85=Validation!D35,'ED OTC - SET UP'!BJ85=Validation!F37),\"REQUIRED\",\"NOT REQURED\")))))))))))))))))","v":"NOT REQURED"}]
[]
[]
[]
[null,null,null,null,null,null,null,null,null,null,null,null,null,null,null,null,null,null,null,null,null,null,"5. Proposed Job creation/retention"]
[null,null,null,null,null,null,null,null,null,null,null,null,null,null,null,null,null,null,null,null,null,null,"Proposed Accomplishments",null,null,null,null,null,null,null,null,null,"Total Job Count",null,null,null,null,null,null,null,null,null,null,null,null,null,null,null,null,"Total Weekly Hours"]
[]
[null,null,null,null,null,null,null,null,null,null,null,null,null,null,null,null,null,null,null,null,null,null,null,null,null,null,null,null,null,null,null,null,"Full Time",null,null,null,null,null,"Full Time Low/Mod",null,null,null,null,null,null,null,null,null,null,"Part Time",null,null,null,null,null,"Part Time Low/Mod"]
[null,null,null,null,null,null,null,null,null,null,null,null,null,null,null,null,null,null,null,null,null,null,"Expect to Create"]
[null,null,null,null,null,null,null,null,null,null,null,null,null,null,null,null,null,null,null,null,null,null,null,null,null,null,null,null,null,null,null,null,null,null,null,null,null,null,null,null,null,null,null,null,"Total",null,null,null,null,null,null,null,null,null,null,null,null,null,null,null,null,"Total"]
[null,null,null,null,null,null,null,null,null,null,null,null,null,null,null,null,null,null,null,null,null,null,"Expect to Retain"]
[null,null,null,null,null,null,null,null,null,null,null,null,null,null,null,null,null,null,null,null,null,null,null,null,null,null,null,null,null,null,null,null,null,null,null,null,null,null,null,null,null,null,null,null,{"$f":"SUM(AN96,AN98)","v":0},null,null,null,null,null,null,null,null,null,null,null,null,null,null,null,null,{"$f":"SUM(BE96,BE98)","v":0}]
[]
[null,null,null,null,null,null,null,null,null,null,null,null,null,null,null,null,null,null,null,null,null,null,null,null,null,null,null,null,null,null,null,null,null,null,null,null,null,null,null,null,null,null,null,null,null,null,null,null,null,null,null,null,null,null,null,null,null,null,null,null,null,null,null,null,null,null,null,null,null,null,null,null,null,null,null,null,null,null,null,null,null,"Page 2"]
[null,null,null,null,null,null,null,null,null,null,null," Part D ",null,null,null,null,null,null,"AREA BENEFIT DATA",null,null,null,null,null,null,null,null,null,null,null,null,null,null,null,null,null,null,null,null,null,null,null,null,null,null,null,null,null,null,null,null,null,null,{"$f":"IF(AND($N$85=Validation!$D$9,'ED OTC - SET UP'!$AK$85=Validation!$D$31,'ED OTC - SET UP'!$BJ$85=Validation!$F$36),\"REQUIRED\",IF(AND($N$85=Validation!$D$9,'ED OTC - SET UP'!$AK$85=Validation!$D$32,'ED OTC - SET UP'!$BJ$85=Validation!$F$36),\"REQUIRED\",IF(AND('ED OTC - SET UP'!N85=Validation!$D$9,'ED OTC - SET UP'!$AK$85=Validation!$D$33,'ED OTC - SET UP'!$BJ$85=Validation!$F$36),\"REQUIRED\",IF(AND('ED OTC - SET UP'!N85=Validation!$D$9,'ED OTC - SET UP'!$AK$85=Validation!$D$34,'ED OTC - SET UP'!$BJ$85=Validation!$F$36),\"REQUIRED\",IF(AND('ED OTC - SET UP'!N85=Validation!$D$9,'ED OTC - SET UP'!$AK$85=Validation!$D$36,'ED OTC - SET UP'!$BJ$85=Validation!$F$36),\"REQUIRED\",IF(AND($N$85=Validation!$D$9,'ED OTC - SET UP'!$AK$85=Validation!$D$32,'ED OTC - SET UP'!$BJ$85=Validation!$F$38),\"REQUIRED\",IF(AND('ED OTC - SET UP'!N85=Validation!$D$10,'ED OTC - SET UP'!$AK$85=Validation!$D$31,'ED OTC - SET UP'!$BJ$85=Validation!$F$37),\"NOT REQUIRED\",IF(AND('ED OTC - SET UP'!N85=Validation!$D$10,'ED OTC - SET UP'!$AK$85=Validation!$D$32,'ED OTC - SET UP'!$BJ$85=Validation!$F$36),\"NOT REQUIRED\",IF(AND('ED OTC - SET UP'!N85=Validation!$D$10,'ED OTC - SET UP'!$AK$85=Validation!$D$32,'ED OTC - SET UP'!$BJ$85=Validation!$F$38),\"NOT REQUIRED\",IF(AND('ED OTC - SET UP'!N85=Validation!$D$10,'ED OTC - SET UP'!$AK$85=Validation!$D$33,'ED OTC - SET UP'!$BJ$85=Validation!$F$37),\"NOT REQUIRED\",IF(AND('ED OTC - SET UP'!N85=Validation!$D$10,'ED OTC - SET UP'!$AK$85=Validation!$D$34,'ED OTC - SET UP'!$BJ$85=Validation!$F$37),\"NOT REQUIRED\",IF(AND('ED OTC - SET UP'!N85=Validation!$D$10,'ED OTC - SET UP'!$AK$85=Validation!$D$36,'ED OTC - SET UP'!$BJ$85=Validation!$F$37),\"NOT REQUIRED\",IF(AND('ED OTC - SET UP'!N85=Validation!$D$11,'ED OTC - SET UP'!$AK$85=Validation!$D$31,'ED OTC - SET UP'!$BJ$85=Validation!$F$36),\"NOT REQUIRED\",IF(AND('ED OTC - SET UP'!N85=Validation!$D$11,'ED OTC - SET UP'!$AK$85=Validation!$D$32,'ED OTC - SET UP'!$BJ$85=Validation!$F$36),\"NOT REQUIRED\",IF(AND('ED OTC - SET UP'!N85=Validation!$D$11,'ED OTC - SET UP'!$AK$85=Validation!$D$32,'ED OTC - SET UP'!$BJ$85=Validation!$F$38),\"NOT REQUIRED\",IF(AND('ED OTC - SET UP'!N85=Validation!$D$11,'ED OTC - SET UP'!$AK$85=Validation!$D$34,'ED OTC - SET UP'!$BJ$85=Validation!$F$36),\"NOT REQUIRED\",IF(AND(N85=Validation!D9,'ED OTC - SET UP'!AK85=Validation!D35,'ED OTC - SET UP'!BJ85=Validation!F36),\"REQUIRED\",\"NOT REQUIRED\")))))))))))))))))","v":"NOT REQUIRED"}]
[]
[]
[]
[null,null,null,null,null,null,null,null,null,null,null,null,null,"Benefit data determined by",null,null,null,null,null,null,null,null,null,null,null,null,null,null,null,null,null,null,null,null,null,null,null,null,null,null,null,null,null,null,null,null,null,null,"DATE",null,null,null,null,null,null,null,null,null,"County Code",null,null,null,null,null,null,"Select Option"]
[]
[null,null,null,null,null,null,null,null,null,null,null,null,null,null,null,null,null,null,null,null,null,null,null,null,null,null,null,null,null,"Block Groups"]
[]
[]
[null,null,null,null,null,null,null,null,null,null,null,null,null,"Census Tract"]
[]
[]
[null,null,null,null,null,null,null,null,null,null,null,null,null,"Census Tract"]
[]
[]
[null,null,null,null,null,null,null,null,null,null,null,null,null,"Census Tract"]
[]
[]
[null,null,null,null,null,null,null,null,null,null,null,null,null,"Census Tract"]
[]
[]
[null,null,null,null,null,null,null,null,null,null,null,null,null,"Census Tract"]
[]
[]
[null,null,null,null,null,null,null,null,null,null,null,null,null,"Census Tract"]
[]
[]
[null,null,null,null,null,null,null,null,null,null,null,null,null,"Census Tract"]
[]
[]
[null,null,null,null,null,null,null,null,null,null,null,null,null,"Census Tract"]
[]
[]
[null,null,null,null,null,null,null,null,null,null,null,null,null,"Census Tract"]
[]
[]
[null,null,null,null,null,null,null,null,null,null,null,null,null,"Census Tract"]
[]
[]
[null,null,null,null,null,null,null,null,null,null,null,null,null,"Census Tract"]
[]
[]
[null,null,null,null,null,null,null,null,null,null,null,null,null,"Census Tract"]
[]
[]
[null,null,null,null,null,null,null,null,null,null,null,null,null,"Census Tract"]
[]
[]
[]
[null,null,null,null,null,null,null,null,null,null,null,null,null,"Total # Low/Mod",null,null,null,null,null,null,null,null,null,null,null,null,null,null,null,null,null,null,null,null,null,null,null,null,null,"Total Low/Mod Universe Population"]
[]
[]
[]
[null,null,null,null,null,null,null,null,null,null,null," Part E ",null,null,null,null,null,null,"OWNWER(S) INFORMATION",null,null,null,null,null,null,null,null,null,null,null,null,null,null,null,null,null,null,null,null,null,null,null,null,null,null,null,null,null,null,null,null,null,null,{"$f":"IF(AND($N$85=Validation!$D$9,'ED OTC - SET UP'!$AK$85=Validation!$D$31,'ED OTC - SET UP'!$BJ$85=Validation!$F$36),\"REQUIRED\",IF(AND($N$85=Validation!$D$9,'ED OTC - SET UP'!$AK$85=Validation!$D$32,'ED OTC - SET UP'!$BJ$85=Validation!$F$36),\"NOT REQUIRED\",IF(AND($N$85=Validation!$D$9,'ED OTC - SET UP'!$AK$85=Validation!$D$33,'ED OTC - SET UP'!$BJ$85=Validation!$F$36),\"REQUIRED\",IF(AND($N$85=Validation!$D$9,'ED OTC - SET UP'!$AK$85=Validation!$D$34,'ED OTC - SET UP'!$BJ$85=Validation!$F$36),\"REQUIRED\",IF(AND($N$85=Validation!$D$9,'ED OTC - SET UP'!$AK$85=Validation!$D$36,'ED OTC - SET UP'!$BJ$85=Validation!$F$36),\"REQUIRED\",IF(AND($N$85=Validation!$D$9,'ED OTC - SET UP'!$AK$85=Validation!$D$32,'ED OTC - SET UP'!$BJ$85=Validation!$F$38),\"NOT REQUIRED\",IF(AND('ED OTC - SET UP'!N85=Validation!$D$10,'ED OTC - SET UP'!$AK$85=Validation!$D$31,'ED OTC - SET UP'!$BJ$85=Validation!$F$37),\"REQUIRED\",IF(AND('ED OTC - SET UP'!N85=Validation!$D$10,'ED OTC - SET UP'!$AK$85=Validation!$D$32,'ED OTC - SET UP'!$BJ$85=Validation!$F$36),\"NOT REQUIRED\",IF(AND('ED OTC - SET UP'!N85=Validation!$D$10,'ED OTC - SET UP'!$AK$85=Validation!$D$32,'ED OTC - SET UP'!$BJ$85=Validation!$F$38),\"NOT REQUIRED\",IF(AND('ED OTC - SET UP'!N85=Validation!$D$10,'ED OTC - SET UP'!$AK$85=Validation!$D$33,'ED OTC - SET UP'!$BJ$85=Validation!$F$37),\"REQUIRED\",IF(AND('ED OTC - SET UP'!N85=Validation!$D$10,'ED OTC - SET UP'!$AK$85=Validation!$D$34,'ED OTC - SET UP'!$BJ$85=Validation!$F$37),\"REQUIRED\",IF(AND('ED OTC - SET UP'!N85=Validation!$D$10,'ED OTC - SET UP'!$AK$85=Validation!$D$36,'ED OTC - SET UP'!$BJ$85=Validation!$F$37),\"REQUIRED\",IF(AND('ED OTC - SET UP'!N85=Validation!$D$11,'ED OTC - SET UP'!$AK$85=Validation!$D$31,'ED OTC - SET UP'!$BJ$85=Validation!$F$36),\"REQUIRED\",IF(AND('ED OTC - SET UP'!N85=Validation!$D$11,'ED OTC - SET UP'!$AK$85=Validation!$D$32,'ED OTC - SET UP'!$BJ$85=Validation!$F$36),\"NOT REQUIRED\",IF(AND('ED OTC - SET UP'!N85=Validation!$D$11,'ED OTC - SET UP'!$AK$85=Validation!$D$32,'ED OTC - SET UP'!$BJ$85=Validation!$F$38),\"NOT REQUIRED\",IF(AND('ED OTC - SET UP'!N85=Validation!$D$11,'ED OTC - SET UP'!$AK$85=Validation!$D$34,'ED OTC - SET UP'!$BJ$85=Validation!$F$36),\"REQUIRED\",IF(AND(N85=Validation!D9,'ED OTC - SET UP'!AK85=Validation!D35,'ED OTC - SET UP'!BJ85=Validation!F36),\"REQUIRED\",IF(AND(N85=Validation!D11,'ED OTC - SET UP'!AK85=Validation!D35,'ED OTC - SET UP'!BJ85=Validation!F36),\"REQUIRED\",IF(AND(N85=Validation!D10,'ED OTC - SET UP'!AK85=Validation!D35,'ED OTC - SET UP'!BJ85=Validation!F37),\"REQUIRED\",\"NOT REQUIRED\")))))))))))))))))))","v":"NOT REQUIRED"}]
[]
[]
[]
[null,null,null,null,null,null,null,null,null,null,null,null,null,null,null,null,null,null,null,null,null,null,null,null,null,null,"Entity Name"]
[]
[null,null,null,null,null,null,null,null,null,null,null,null,null,"Complete Address"]
[]
[null,null,null,null,null,null,null,null,null,null,null,null,null,null,null,null,null,null,null,null,null,null,null,null,null,null,"Company Name"]
[]
[null,null,null,null,null,null,null,null,null,null,null,null,null," Owner 1 Name",null,null,null,null,null,null,null,null,null,null,null,null,"Last Name",null,null,null,null,null,null,null,null,null,null,null,null,null,null,null,null,null,null,null,null,null,null,null,null,null,null,"First Name"]
[]
[null,null,null,null,null,null,null,null,null,null,null,null,null,"Complete Address"]
[]
[null,null,null,null,null,null,null,null,null,null,null,null,null," Owner 2 Name",null,null,null,null,null,null,null,null,null,null,null,null,"Last Name",null,null,null,null,null,null,null,null,null,null,null,null,null,null,null,null,null,null,null,null,null,null,null,null,null,null,"First Name"]
[]
[null,null,null,null,null,null,null,null,null,null,null,null,null,"Complete Address"]
[]
[]
[null,null,null,null,null,null,null,null,null,null,null," Part F ",null,null,null,null,null,null,"SPECIAL CARACTERISTICS",null,null,null,null,null,null,null,null,null,null,null,null,null,null,null,null,null,null,null,null,null,null,null,null,null,null,null,null,null,null,null,null,null,null,{"$f":"IF(AND($N$85=Validation!$D$9,'ED OTC - SET UP'!$AK$85=Validation!$D$31,'ED OTC - SET UP'!$BJ$85=Validation!$F$36),\"REQUIRED\",IF(AND($N$85=Validation!$D$9,'ED OTC - SET UP'!$AK$85=Validation!$D$32,'ED OTC - SET UP'!$BJ$85=Validation!$F$36),\"NOT REQUIRED\",IF(AND($N$85=Validation!$D$9,'ED OTC - SET UP'!$AK$85=Validation!$D$33,'ED OTC - SET UP'!$BJ$85=Validation!$F$36),\"REQUIRED\",IF(AND($N$85=Validation!$D$9,'ED OTC - SET UP'!$AK$85=Validation!$D$34,'ED OTC - SET UP'!$BJ$85=Validation!$F$36),\"REQUIRED\",IF(AND($N$85=Validation!$D$9,'ED OTC - SET UP'!$AK$85=Validation!$D$36,'ED OTC - SET UP'!$BJ$85=Validation!$F$36),\"REQUIRED\",IF(AND($N$85=Validation!$D$9,'ED OTC - SET UP'!$AK$85=Validation!$D$32,'ED OTC - SET UP'!$BJ$85=Validation!$F$38),\"NOT REQUIRED\",IF(AND('ED OTC - SET UP'!N85=Validation!$D$10,'ED OTC - SET UP'!$AK$85=Validation!$D$31,'ED OTC - SET UP'!$BJ$85=Validation!$F$37),\"REQUIRED\",IF(AND('ED OTC - SET UP'!N85=Validation!$D$10,'ED OTC - SET UP'!$AK$85=Validation!$D$32,'ED OTC - SET UP'!$BJ$85=Validation!$F$36),\"NOT REQUIRED\",IF(AND('ED OTC - SET UP'!N85=Validation!$D$10,'ED OTC - SET UP'!$AK$85=Validation!$D$32,'ED OTC - SET UP'!$BJ$85=Validation!$F$38),\"NOT REQUIRED\",IF(AND('ED OTC - SET UP'!N85=Validation!$D$10,'ED OTC - SET UP'!$AK$85=Validation!$D$33,'ED OTC - SET UP'!$BJ$85=Validation!$F$37),\"REQUIRED\",IF(AND('ED OTC - SET UP'!N85=Validation!$D$10,'ED OTC - SET UP'!$AK$85=Validation!$D$34,'ED OTC - SET UP'!$BJ$85=Validation!$F$37),\"REQUIRED\",IF(AND('ED OTC - SET UP'!N85=Validation!$D$10,'ED OTC - SET UP'!$AK$85=Validation!$D$36,'ED OTC - SET UP'!$BJ$85=Validation!$F$37),\"REQUIRED\",IF(AND('ED OTC - SET UP'!N85=Validation!$D$11,'ED OTC - SET UP'!$AK$85=Validation!$D$31,'ED OTC - SET UP'!$BJ$85=Validation!$F$36),\"REQUIRED\",IF(AND('ED OTC - SET UP'!N85=Validation!$D$11,'ED OTC - SET UP'!$AK$85=Validation!$D$32,'ED OTC - SET UP'!$BJ$85=Validation!$F$36),\"NOT REQUIRED\",IF(AND('ED OTC - SET UP'!N85=Validation!$D$11,'ED OTC - SET UP'!$AK$85=Validation!$D$32,'ED OTC - SET UP'!$BJ$85=Validation!$F$38),\"NOT REQUIRED\",IF(AND('ED OTC - SET UP'!N85=Validation!$D$11,'ED OTC - SET UP'!$AK$85=Validation!$D$34,'ED OTC - SET UP'!$BJ$85=Validation!$F$36),\"REQUIRED\",IF(AND(N85=Validation!D9,'ED OTC - SET UP'!AK85=Validation!D35,'ED OTC - SET UP'!BJ85=Validation!F36),\"REQUIRED\",IF(AND(N85=Validation!D11,'ED OTC - SET UP'!AK85=Validation!D35,'ED OTC - SET UP'!BJ85=Validation!F36),\"REQUIRED\",IF(AND(N85=Validation!D10,'ED OTC - SET UP'!AK85=Validation!D35,'ED OTC - SET UP'!BJ85=Validation!F37),\"REQUIRED\",\"NOT REQUIRED\")))))))))))))))))))","v":"NOT REQUIRED"}]
[]
[]
[]
[null,null,null,null,null,null,null,null,null,null,null,null,null,"1. Check all that apply to the business"]
[]
[]
[]
[]
[]
[null,null,null,null,null,null,null,null,null,null,null,null,null,"2. Business Legal Structure",null,null,null,null,null,null,null,null,null,null,null,null,null,"Select Option",null,null,null,null,null,null,null,null,null,null,null,null,null,null,null,"3. Purpose of Loan",null,null,null,null,null,null,null,null,null,null,"Select Option"]
[]
[null,null,null,null,null,null,null,null,null,null,null,null,null,"4. DUNS # for Business Assisted",null,null,null,null,null,null,null,null,null,null,null,null,null,null,null,null,null,null,null,null,null,null,null,null,null,null,null,null,null,null,null,null,null,"5. Number of employees on payroll"]
[]
[null,null,null,null,null,null,null,null,null,null,null,null,null,"7. Number of Business Facades/Buildings Rehabilitated"]
[]
[null,null,null,null,null,null,null,null,null,null,null,null,null,"8. Number of Businesses Assisted that Provide Goods or Services to Meet the Needs of a Service Area"]
[]
[]
[]
[null,null,null,null,null,null,null,null,null,null,null,null,"Comments: explain any issues with this activity or clarification of information provided in this form."]
[]
[]
[]
[]
[null,null,null,null,null,null,null,null,null,null,null,null,null,null,null,null,null,null,null,null,null,null,null,null,null,null,null,null,null,null,null,null,null,null,null,null,null,null,null,null,null,null,null,null,null,null,null,null,null,null,null,null,null,null,null,null,null,null,null,null,null,null,null,null,null,null,null,null,null,null,null,null,null,null,null,null,null,null,null,null,null,"Page 3"]
[null,null,null,null,null,null,null,null,null,null,null,"Part G",null,null,null,null,null,null,"PROJECT FUNDING SOURCE DETAIL",null,null,null,null,null,null,null,null,null,null,null,null,null,null,null,null,null,null,null,null,null,null,null,null,null,null,null,null,null,null,null,null,null,null,"REQUIRED"]
[]
[]
[]
[null,null,null,null,null,null,null,null,null,null,null,null,null,"1. CDBG Grant",null,null,null,null,null,null,null,null,null,null,null,null,null,null,null,null,null,null,null,null,null,null,null,null,null,null,null,null,null,null,null,null,null,null,{"$f":"AK85","v":"Select Option"}]
[]
[]
[]
[null,null,null,null,null,null,null,null,null,null,null,null,null,null,"Funding Type (CDBG Funds)",null,null,null,null,null,null,null,null,null,null,null,null,null,null,null,null,null,null,null,null,"Loan Type",null,null,null,null,null,null,null,null,null,null,null,null,"Interest Rate",null,null,null,null,null,null,"Loan Period (months)",null,null,null,null,null,null,null,null,null,"Amount (CBDG Funds)"]
[]
[]
[]
[]
[null,null,null,null,null,null,null,null,null,null,null,null,null,null,"CDBG - Loan",null,null,null,null,null,null,null,null,null,null,null,null,null,null,null,null,null,null,null,null,"Select Option"]
[]
[null,null,null,null,null,null,null,null,null,null,null,null,null,null,"CDBG - Grant"]
[]
[null,null,null,null,null,null,null,null,null,null,null,null,null,null,"Activity Delivery"]
[]
[null,null,null,null,null,null,null,null,null,null,null,null,null,null,null,null,null,null,null,null,null,null,null,null,null,null,null,null,null,null,null,null,null,null,null,null,null,null,null,null,null,null,null,null,null,null,null,null,null,null,null,null,null,"TOTAL",null,null,null,null,null,null,null,null,null,null,null,{"$f":"SUMIF($BN$212:$BY$216,\">0\")","v":0}]
[]
[]
[null,null,null,null,null,null,null,null,null,null,null,null,null,"2. CDBG Program Income (Not RLF)"]
[]
[]
[]
[null,null,null,null,null,null,null,null,null,null,null,null,null,null,"Program Income (PI) Type",null,null,null,null,null,null,null,null,null,null,null,null,null,null,null,null,null,null,null,null,"Loan Type",null,null,null,null,null,null,null,null,null,null,null,null,"Interest Rate",null,null,null,null,null,null,"Loan Period (months)",null,null,null,null,null,null,null,null,null,"Amount PI Funds"]
[]
[]
[]
[]
[null,null,null,null,null,null,null,null,null,null,null,null,null,null,"CDBG - PI Loan",null,null,null,null,null,null,null,null,null,null,null,null,null,null,null,null,null,null,null,null,"Select Option"]
[]
[null,null,null,null,null,null,null,null,null,null,null,null,null,null,"CDBG - Grant"]
[]
[null,null,null,null,null,null,null,null,null,null,null,null,null,null,"Activity Delivery"]
[]
[null,null,null,null,null,null,null,null,null,null,null,null,null,null,null,null,null,null,null,null,null,null,null,null,null,null,null,null,null,null,null,null,null,null,null,null,null,null,null,null,null,null,null,null,null,null,null,null,null,null,null,null,null,"TOTAL",null,null,null,null,null,null,null,null,null,null,null,{"$f":"SUMIF($BN$230:$BY$234,\">0\")","v":0}]
[]
[]
[null,null,null,null,null,null,null,null,null,null,null,null,null,"3. CDBG (RLF) Revolving Loan Fund"]
[]
[]
[]
[null,null,null,null,null,null,null,null,null,null,null,null,null,null,"Program Income (PI) Type",null,null,null,null,null,null,null,null,null,null,null,null,null,null,null,null,null,null,null,null,"Loan Type",null,null,null,null,null,null,null,null,null,null,null,null,"Interest Rate",null,null,null,null,null,null,"Loan Period (months)",null,null,null,null,null,null,null,null,null," Amount RLF "]
[]
[]
[]
[]
[null,null,null,null,null,null,null,null,null,null,null,null,null,null,"CDBG - RLF Loan",null,null,null,null,null,null,null,null,null,null,null,null,null,null,null,null,null,null,null,null,"Select Option"]
[]
[null,null,null,null,null,null,null,null,null,null,null,null,null,null,"CDBG - Grant"]
[]
[null,null,null,null,null,null,null,null,null,null,null,null,null,null,"Activity Delivery"]
[]
[null,null,null,null,null,null,null,null,null,null,null,null,null,null,null,null,null,null,null,null,null,null,null,null,null,null,null,null,null,null,null,null,null,null,null,null,null,null,null,null,null,null,null,null,null,null,null,null,null,null,null,null,null,"TOTAL",null,null,null,null,null,null,null,null,null,null,null,{"$f":"SUMIF($BN$248:$BY$252,\">0\")","v":0}]
[]
[]
[null,null,null,null,null,null,null,null,null,null,null,null,null,null,null,null,null,null,null,null,null,null,null,null,null,null,null,null,null,"CDBG FUNDING by category",null,null,null,null,null,null,null,null,null,null,null,null,null,null,null,null,null,null,null,null,null,null,"AMOUNT",null,null,null,null,null,null,null,null,null,null,null,null,"TOTAL CDBG FUNDING"]
[]
[null,null,null,null,null,null,null,null,null,null,null,null,null,null,null,null,null,null,null,null,null,null,null,null,null,null,null,null,null,"CDBG - Loans",null,null,null,null,null,null,null,null,null,null,null,null,null,null,null,null,null,null,null,null,null,null,null,null,{"$f":"SUM(BN212,BN230,BN248)","v":0}]
[null,null,null,null,null,null,null,null,null,null,null,null,null,null,null,null,null,null,null,null,null,null,null,null,null,null,null,null,null,"CDBG - Grants",null,null,null,null,null,null,null,null,null,null,null,null,null,null,null,null,null,null,null,null,null,null,null,null,{"$f":"SUM(BN214,BN232,BN250)","v":0}]
[null,null,null,null,null,null,null,null,null,null,null,null,null,null,null,null,null,null,null,null,null,null,null,null,null,null,null,null,null,"Activity Delivery",null,null,null,null,null,null,null,null,null,null,null,null,null,null,null,null,null,null,null,null,null,null,null,null,{"$f":"SUM(BN216,BN234,BN252)","v":0},null,null,null,null,null,null,null,null,null,null,null,null,{"$f":"SUM(BC259:BJ261)","v":0}]
[]
[null,null,null,null,null,null,null,null,null,null,null,null,null,"4. Leverage and Other Funding Sources"]
[]
[]
[]
[null,null,null,null,null,null,null,null,null,null,null,null,null,null,"Funding Source ",null,null,null,null,null,null,null,null,null,null,null,null,null,null,null,null,null,null,null,null,null,null,"Name of Source",null,null,null,null,null,null,null,null,null,null,null,null,null,null,null,null,null,null,null,null,null,null,null,null,null,null,null,null,null,"Amount"]
[]
[null,null,null,null,null,null,null,null,null,null,null,null,null,null,"Select Option"]
[]
[]
[]
[]
[]
[]
[]
[]
[]
[]
[]
[null,null,null,null,null,null,null,null,null,null,null,null,null,null,null,null,null,null,null,null,null,null,null,null,null,null,null,null,null,null,null,null,null,null,null,null,null,null,null,null,null,null,null,null,null,null,null,null,null,null,null,null,null,null,null,"TOTAL",null,null,null,null,null,null,null,null,null,null,null,{"$f":"SUMIF($BP$269:$BY$279,\">0\")","v":0}]
[]
[]
[null,null,null,null,null,null,null,null,null,null,null,null,null,null,null,null,null,null,null,null,null,null,null,null,null,null,null,null,null,null,null,null,null,null,null,null,null,null,null,null,null,null,null,null,null,null,null,null,null,null,null,null,"TOTAL PROJECT COST",null,null,null,null,null,null,null,null,null,null,null,null,null,null,{"$f":"SUM(BP281,BN254,BN236,BN218)","v":0}]
[]
[]
[]
[]
[null,null,null,null,null,null,null,null,null,null,null,"END OF DOCUMENT"]

{"sheet":"ED OTC - COMPLETION","index":1,"n_rows":66,"n_cols":80,"rows_kept":66,"cut":false,"hidden":false,"merged":[[22,56,22,77],[22,22,22,55],[43,56,43,77],[43,22,43,55],[18,12,18,21],[18,22,18,55],[18,56,18,77],[20,12,20,77],[63,13,63,22],[54,24,54,31],[54,33,54,40],[55,35,55,38],[55,26,55,29],[56,26,56,29],[56,35,56,38],[57,26,57,29],[57,35,57,38],[58,26,58,29],[58,35,58,38],[59,26,59,29],[59,35,59,38],[60,26,60,29],[60,35,60,38],[61,26,61,29],[61,35,61,38],[62,26,62,29],[62,35,62,38],[63,26,63,29],[63,35,63,38],[49,75,49,77],[50,58,53,74],[52,75,53,77],[56,58,58,74],[58,75,58,77],[49,35,49,38],[49,47,49,50],[49,52,49,55],[51,35,51,38],[51,47,51,50],[51,52,51,55],[1,79,63,81],[45,13,47,22],[49,13,49,22],[51,13,51,22],[22,12,22,21],[43,12,43,21],[54,13,54,22],[45,23,46,39],[45,40,46,56],[47,23,47,28],[47,29,47,39],[47,40,47,45],[47,46,47,56],[61,13,61,22],[62,13,62,22],[45,58,45,64],[56,13,56,22],[57,13,57,22],[58,13,58,22],[59,13,59,22],[60,13,60,22],[49,24,49,27],[49,30,49,33],[49,41,49,44],[55,13,55,22],[51,24,51,27],[51,30,51,33],[51,41,51,44],[55,58,55,64],[47,58,49,74],[40,39,40,42],[28,49,28,61],[28,63,28,66],[41,18,41,42],[41,44,41,46],[29,49,29,61],[29,63,29,66],[28,35,28,37],[28,39,28,42],[28,44,28,46],[29,12,29,23],[29,25,29,27],[29,29,29,33],[29,35,29,37],[29,39,29,42],[29,44,29,46],[28,12,28,23],[28,25,28,27],[26,49,26,61],[26,63,26,66],[39,18,39,33],[39,35,39,37],[27,49,27,61],[27,63,27,66],[40,18,40,37],[37,18,37,24],[33,44,33,46],[32,12,32,23],[32,25,32,27],[32,29,32,33],[30,35,30,37],[30,39,30,42],[30,44,30,46],[31,12,31,23],[31,25,31,27],[31,29,31,33],[31,35,31,37],[31,39,31,42],[31,44,31,46],[30,12,30,23],[30,25,30,27],[30,29,30,33],[25,49,25,61],[25,63,25,66],[37,25,37,27],[37,29,37,33],[34,35,34,37],[34,39,34,42],[34,44,34,46],[35,12,35,23],[35,25,35,27],[35,29,35,33],[35,35,35,37],[35,39,35,42],[35,44,35,46],[34,12,34,23],[34,25,34,27],[34,29,34,33],[32,35,32,37],[32,39,32,42],[32,44,32,46],[33,12,33,23],[33,25,33,27],[33,29,33,33],[33,35,33,37],[33,39,33,42],[28,29,28,33],[26,35,26,37],[26,39,26,42],[26,44,26,46],[27,12,27,23],[27,25,27,27],[27,29,27,33],[27,35,27,37],[27,39,27,42],[27,44,27,46],[26,12,26,23],[26,25,26,27],[26,29,26,33],[24,44,25,46],[25,12,25,23],[25,25,25,27],[25,29,25,33],[1,12,3,23],[16,12,16,25],[16,27,16,30],[16,33,16,36],[16,40,16,43],[16,45,16,48],[65,12,66,77],[6,62,7,77],[5,12,6,60],[8,14,8,25],[8,26,8,60],[9,14,9,25],[9,26,9,60],[11,12,11,21],[1,25,3,54],[1,56,3,61],[1,62,3,77],[13,12,13,25],[13,27,13,30],[13,32,15,37],[13,39,15,44],[13,46,15,66],[15,12,15,25],[15,27,15,30],[15,68,15,71],[11,22,11,60],[11,61,11,77],[24,25,24,33],[24,35,25,37],[24,38,25,43]]}
[]
[null,null,null,null,null,null,null,null,null,null,null,null,"Jurisdiction Name:",null,null,null,null,null,null,null,null,null,null,null,null,{"$f":"IF('ED OTC - SET UP'!X2>0,'ED OTC - SET UP'!X2,\"\")","v":""},null,null,null,null,null,null,null,null,null,null,null,null,null,null,null,null,null,null,null,null,null,null,null,null,null,null,null,null,null,null,"Contract #",null,null,null,null,null,{"$f":"IF('ED OTC - SET UP'!BJ2>0,'ED OTC - SET UP'!BJ2,\"\")","v":""},null,null,null,null,null,null,null,null,null,null,null,null,null,null,null,null,"Page 1"]
[]
[]
[]
[null,null,null,null,null,null,null,null,null,null,null,null,"STATE OF CALIFORNIA - CDBG PROGRAM\nProject Status and/or Completion Report"]
[null,null,null,null,null,null,null,null,null,null,null,null,null,null,null,null,null,null,null,null,null,null,null,null,null,null,null,null,null,null,null,null,null,null,null,null,null,null,null,null,null,null,null,null,null,null,null,null,null,null,null,null,null,null,null,null,null,null,null,null,null,null,"Status"]
[]
[null,null,null,null,null,null,null,null,null,null,null,null,null,null,"National Objective",null,null,null,null,null,null,null,null,null,null,null,{"$f":"IF('ED OTC - SET UP'!N85>0,'ED OTC - SET UP'!N85,\"\")","v":"Select Option"}]
[null,null,null,null,null,null,null,null,null,null,null,null,null,null,"Activity Matrix Code",null,null,null,null,null,null,null,null,null,null,null,{"$f":"IF('ED OTC - SET UP'!AK85>0,'ED OTC - SET UP'!AK85,\"\")","v":"Select Option"}]
[]
[null,null,null,null,null,null,null,null,null,null,null,null,"Part A",null,null,null,null,null,null,null,null,null,"DIRECT BENEFIT DATA BY BUSINESS"]
[]
[null,null,null,null,null,null,null,null,null,null,null,null,"Assistance to Businesses",null,null,null,null,null,null,null,null,null,null,null,null,null,null,"Total",null,null,null,null,"Number Expanding",null,null,null,null,null,null,"Number Relocating",null,null,null,null,null,null,"Number of Businesses Assisted that Provide Goods or Services to Meet the Needs of a Service Area"]
[]
[null,null,null,null,null,null,null,null,null,null,null,null,"New Businesses Assisted",null,null,null,null,null,null,null,null,null,null,null,null,null,null,{"$f":"COUNTIF('Accomplishmets-Jobs'!CA10:CA42,Validation!C2)","v":1},null,null,null,null,null,null,null,null,null,null,null,null,null,null,null,null,null,null,null,null,null,null,null,null,null,null,null,null,null,null,null,null,null,null,null,null,null,null,null,null,{"$f":"COUNTIF('Accomplishmets-Jobs'!CL10:CL42,Validation!B2)","v":1}]
[null,null,null,null,null,null,null,null,null,null,null,null,"Existing Businesses Assisted",null,null,null,null,null,null,null,null,null,null,null,null,null,null,{"$f":"COUNTIF('Accomplishmets-Jobs'!CA10:CA42,Validation!C3)","v":0},null,null,null,null,null,{"$f":"COUNTIF('Accomplishmets-Jobs'!CF10:CF42,Validation!C7)","v":1},null,null,null,null,null,null,{"$f":"COUNTIF('Accomplishmets-Jobs'!CF10:CF42,Validation!C8)","v":0}]
[]
[null,null,null,null,null,null,null,null,null,null,null,null,"Part A",null,null,null,null,null,null,null,null,null,"ACCOMPLISHMENT NARRATIVE",null,null,null,null,null,null,null,null,null,null,null,null,null,null,null,null,null,null,null,null,null,null,null,null,null,null,null,null,null,null,null,null,null,"REQUIRED"]
[]
[]
[]
[null,null,null,null,null,null,null,null,null,null,null,null,"Part B",null,null,null,null,null,null,null,null,null,"DIRECT BENEFIT DATA BY PERSON",null,null,null,null,null,null,null,null,null,null,null,null,null,null,null,null,null,null,null,null,null,null,null,null,null,null,null,null,null,null,null,null,null,{"$f":"IF(AND('ED OTC - SET UP'!N85=Validation!$D$9,'ED OTC - SET UP'!$AK$85=Validation!$D$31,'ED OTC - SET UP'!$BJ$85=Validation!$F$36),\"NOT REQUIRED\",IF(AND('ED OTC - SET UP'!N85=Validation!$D$9,'ED OTC - SET UP'!$AK$85=Validation!$D$32,'ED OTC - SET UP'!$BJ$85=Validation!$F$36),\"NOT REQUIRED\",IF(AND('ED OTC - SET UP'!N85=Validation!$D$9,'ED OTC - SET UP'!$AK$85=Validation!$D$33,'ED OTC - SET UP'!$BJ$85=Validation!$F$36),\"NOT REQUIRED\",IF(AND('ED OTC - SET UP'!N85=Validation!$D$9,'ED OTC - SET UP'!$AK$85=Validation!$D$34,'ED OTC - SET UP'!$BJ$85=Validation!$F$36),\"NOT REQUIRED\",IF(AND('ED OTC - SET UP'!N85=Validation!$D$9,'ED OTC - SET UP'!$AK$85=Validation!$D$36,'ED OTC - SET UP'!$BJ$85=Validation!$F$36),\"NOT REQUIRED\",IF(AND('ED OTC - SET UP'!N85=Validation!$D$9,'ED OTC - SET UP'!$AK$85=Validation!$D$32,'ED OTC - SET UP'!$BJ$85=Validation!$F$38),\"NOT REQUIRED\",IF(AND('ED OTC - SET UP'!N85=Validation!$D$10,'ED OTC - SET UP'!$AK$85=Validation!$D$31,'ED OTC - SET UP'!$BJ$85=Validation!$F$37),\"REQUIRED\",IF(AND('ED OTC - SET UP'!N85=Validation!$D$10,'ED OTC - SET UP'!$AK$85=Validation!$D$32,'ED OTC - SET UP'!$BJ$85=Validation!$F$36),\"REQUIRED\",IF(AND('ED OTC - SET UP'!N85=Validation!$D$10,'ED OTC - SET UP'!$AK$85=Validation!$D$32,'ED OTC - SET UP'!$BJ$85=Validation!$F$38),\"REQUIRED\",IF(AND('ED OTC - SET UP'!N85=Validation!$D$10,'ED OTC - SET UP'!$AK$85=Validation!$D$33,'ED OTC - SET UP'!$BJ$85=Validation!$F$37),\"REQUIRED\",IF(AND('ED OTC - SET UP'!N85=Validation!$D$10,'ED OTC - SET UP'!$AK$85=Validation!$D$34,'ED OTC - SET UP'!$BJ$85=Validation!$F$37),\"REQUIRED\",IF(AND('ED OTC - SET UP'!N85=Validation!$D$10,'ED OTC - SET UP'!$AK$85=Validation!$D$36,'ED OTC - SET UP'!$BJ$85=Validation!$F$37),\"REQUIRED\",IF(AND('ED OTC - SET UP'!N85=Validation!$D$11,'ED OTC - SET UP'!$AK$85=Validation!$D$31,'ED OTC - SET UP'!$BJ$85=Validation!$F$36),\"NOT REQUIRED\",IF(AND('ED OTC - SET UP'!N85=Validation!$D$11,'ED OTC - SET UP'!$AK$85=Validation!$D$32,'ED OTC - SET UP'!$BJ$85=Validation!$F$36),\"NOT REQUIRED\",IF(AND('ED OTC - SET UP'!N85=Validation!$D$11,'ED OTC - SET UP'!$AK$85=Validation!$D$32,'ED OTC - SET UP'!$BJ$85=Validation!$F$38),\"NOT REQUIRED\",IF(AND('ED OTC - SET UP'!N85=Validation!$D$11,'ED OTC - SET UP'!$AK$85=Validation!$D$34,'ED OTC - SET UP'!$BJ$85=Validation!$F$36),\"NOT REQUIRED\",IF(AND('ED OTC - SET UP'!N85=Validation!D10,'ED OTC - SET UP'!AK85=Validation!D35,'ED OTC - SET UP'!BJ85=Validation!F37),\"REQUIRED\",\"NOT REQUIRED\")))))))))))))))))","v":"NOT REQUIRED"}]
[]
[null,null,null,null,null,null,null,null,null,null,null,null,null,null,null,null,null,null,null,null,null,null,null,null,null,null,null,null,null,null,null,null,null,null,null,"Disable",null,null,"Female Head of Household",null,null,null,null,null,"Veteran"]
[null,null,null,null,null,null,null,null,null,null,null,null,"Race / Ethnicity",null,null,null,null,null,null,null,null,null,null,null,null,"Total",null,null,null,"Hispanic /Latino",null,null,null,null,null,null,null,null,null,null,null,null,null,null,null,null,null,null,null,"INCOME LEVELS",null,null,null,null,null,null,null,null,null,null,null,null,null,"Total"]
[null,null,null,null,null,null,null,null,null,null,null,null,"White (11)",null,null,null,null,null,null,null,null,null,null,null,null,{"$f":"COUNTIF('Accomplishmets-Jobs'!$BB$10:$BB$1009,Validation!E23)","v":0},null,null,null,{"$f":"COUNTIFS('Accomplishmets-Jobs'!$BB$10:$BB$1009,Validation!E23,'Accomplishmets-Jobs'!$AY$10:$AY$1009,Validation!$B$2)","v":0},null,null,null,null,null,{"$f":"COUNTIFS('Accomplishmets-Jobs'!$BX$10:$BX$1009,Validation!$B$2,'Accomplishmets-Jobs'!$BB$10:$BB$1009,Validation!E23)","v":0},null,null,null,{"$f":"COUNTIFS('Accomplishmets-Jobs'!$BP$10:$BP$1009,Validation!$B$2,'Accomplishmets-Jobs'!$BB$10:$BB$1009,Validation!E23)","v":0},null,null,null,null,{"$f":"COUNTIFS('Accomplishmets-Jobs'!$BM$10:$BM$1009,Validation!$B$2,'Accomplishmets-Jobs'!$BB$10:$BB$1009,Validation!E23)","v":0},null,null,null,null,"Extremely Low (<30%)",null,null,null,null,null,null,null,null,null,null,null,null,null,{"$f":"COUNTIF('Accomplishmets-Jobs'!$AP$10:$AP$1009,Validation!E36)","v":0}]
[null,null,null,null,null,null,null,null,null,null,null,null,"Black/African American (12)",null,null,null,null,null,null,null,null,null,null,null,null,{"$f":"COUNTIF('Accomplishmets-Jobs'!$BB$10:$BB$1009,Validation!E24)","v":0},null,null,null,{"$f":"COUNTIFS('Accomplishmets-Jobs'!$BB$10:$BB$1009,Validation!E24,'Accomplishmets-Jobs'!$AY$10:$AY$1009,Validation!$B$2)","v":0},null,null,null,null,null,{"$f":"COUNTIFS('Accomplishmets-Jobs'!$BX$10:$BX$1009,Validation!$B$2,'Accomplishmets-Jobs'!$BB$10:$BB$1009,Validation!E24)","v":0},null,null,null,{"$f":"COUNTIFS('Accomplishmets-Jobs'!$BP$10:$BP$1009,Validation!$B$2,'Accomplishmets-Jobs'!$BB$10:$BB$1009,Validation!E24)","v":0},null,null,null,null,{"$f":"COUNTIFS('Accomplishmets-Jobs'!$BM$10:$BM$1009,Validation!$B$2,'Accomplishmets-Jobs'!$BB$10:$BB$1009,Validation!E24)","v":0},null,null,null,null,"Low (31-50%)",null,null,null,null,null,null,null,null,null,null,null,null,null,{"$f":"COUNTIF('Accomplishmets-Jobs'!$AP$10:$AP$1009,Validation!E37)","v":0}]
[null,null,null,null,null,null,null,null,null,null,null,null,"Asian (13)",null,null,null,null,null,null,null,null,null,null,null,null,{"$f":"COUNTIF('Accomplishmets-Jobs'!$BB$10:$BB$1009,Validation!E25)","v":0},null,null,null,{"$f":"COUNTIFS('Accomplishmets-Jobs'!$BB$10:$BB$1009,Validation!E25,'Accomplishmets-Jobs'!$AY$10:$AY$1009,Validation!$B$2)","v":0},null,null,null,null,null,{"$f":"COUNTIFS('Accomplishmets-Jobs'!$BX$10:$BX$1009,Validation!$B$2,'Accomplishmets-Jobs'!$BB$10:$BB$1009,Validation!E25)","v":0},null,null,null,{"$f":"COUNTIFS('Accomplishmets-Jobs'!$BP$10:$BP$1009,Validation!$B$2,'Accomplishmets-Jobs'!$BB$10:$BB$1009,Validation!E25)","v":0},null,null,null,null,{"$f":"COUNTIFS('Accomplishmets-Jobs'!$BM$10:$BM$1009,Validation!$B$2,'Accomplishmets-Jobs'!$BB$10:$BB$1009,Validation!E25)","v":0},null,null,null,null,"Moderate (51-80%)",null,null,null,null,null,null,null,null,null,null,null,null,null,{"$f":"COUNTIF('Accomplishmets-Jobs'!$AP$10:$AP$1009,Validation!E38)","v":0}]
[null,null,null,null,null,null,null,null,null,null,null,null,"American Indian / Alaskan Native (14)",null,null,null,null,null,null,null,null,null,null,null,null,{"$f":"COUNTIF('Accomplishmets-Jobs'!$BB$10:$BB$1009,Validation!E26)","v":0},null,null,null,{"$f":"COUNTIFS('Accomplishmets-Jobs'!$BB$10:$BB$1009,Validation!E26,'Accomplishmets-Jobs'!$AY$10:$AY$1009,Validation!$B$2)","v":0},null,null,null,null,null,{"$f":"COUNTIFS('Accomplishmets-Jobs'!$BX$10:$BX$1009,Validation!$B$2,'Accomplishmets-Jobs'!$BB$10:$BB$1009,Validation!E26)","v":0},null,null,null,{"$f":"COUNTIFS('Accomplishmets-Jobs'!$BP$10:$BP$1009,Validation!$B$2,'Accomplishmets-Jobs'!$BB$10:$BB$1009,Validation!E26)","v":0},null,null,null,null,{"$f":"COUNTIFS('Accomplishmets-Jobs'!$BM$10:$BM$1009,Validation!$B$2,'Accomplishmets-Jobs'!$BB$10:$BB$1009,Validation!E26)","v":0},null,null,null,null,"Non-Low/ Moderate (+80%)",null,null,null,null,null,null,null,null,null,null,null,null,null,{"$f":"COUNTIF('Accomplishmets-Jobs'!$AP$10:$AP$1009,Validation!E39)","v":0}]
[null,null,null,null,null,null,null,null,null,null,null,null,"Native Hawaiian / Other Pacific Isl. (15)",null,null,null,null,null,null,null,null,null,null,null,null,{"$f":"COUNTIF('Accomplishmets-Jobs'!$BB$10:$BB$1009,Validation!E27)","v":0},null,null,null,{"$f":"COUNTIFS('Accomplishmets-Jobs'!$BB$10:$BB$1009,Validation!E27,'Accomplishmets-Jobs'!$AY$10:$AY$1009,Validation!$B$2)","v":0},null,null,null,null,null,{"$f":"COUNTIFS('Accomplishmets-Jobs'!$BX$10:$BX$1009,Validation!$B$2,'Accomplishmets-Jobs'!$BB$10:$BB$1009,Validation!E27)","v":0},null,null,null,{"$f":"COUNTIFS('Accomplishmets-Jobs'!$BP$10:$BP$1009,Validation!$B$2,'Accomplishmets-Jobs'!$BB$10:$BB$1009,Validation!E27)","v":0},null,null,null,null,{"$f":"COUNTIFS('Accomplishmets-Jobs'!$BM$10:$BM$1009,Validation!$B$2,'Accomplishmets-Jobs'!$BB$10:$BB$1009,Validation!E27)","v":0}]
[null,null,null,null,null,null,null,null,null,null,null,null,"Am. Indian / Alaskan Native & White (16)",null,null,null,null,null,null,null,null,null,null,null,null,{"$f":"COUNTIF('Accomplishmets-Jobs'!$BB$10:$BB$1009,Validation!E28)","v":0},null,null,null,{"$f":"COUNTIFS('Accomplishmets-Jobs'!$BB$10:$BB$1009,Validation!E28,'Accomplishmets-Jobs'!$AY$10:$AY$1009,Validation!$B$2)","v":0},null,null,null,null,null,{"$f":"COUNTIFS('Accomplishmets-Jobs'!$BX$10:$BX$1009,Validation!$B$2,'Accomplishmets-Jobs'!$BB$10:$BB$1009,Validation!E28)","v":0},null,null,null,{"$f":"COUNTIFS('Accomplishmets-Jobs'!$BP$10:$BP$1009,Validation!$B$2,'Accomplishmets-Jobs'!$BB$10:$BB$1009,Validation!E28)","v":0},null,null,null,null,{"$f":"COUNTIFS('Accomplishmets-Jobs'!$BM$10:$BM$1009,Validation!$B$2,'Accomplishmets-Jobs'!$BB$10:$BB$1009,Validation!E28)","v":0}]
[null,null,null,null,null,null,null,null,null,null,null,null,"Asian & White (17)",null,null,null,null,null,null,null,null,null,null,null,null,{"$f":"COUNTIF('Accomplishmets-Jobs'!$BB$10:$BB$1009,Validation!E29)","v":0},null,null,null,{"$f":"COUNTIFS('Accomplishmets-Jobs'!$BB$10:$BB$1009,Validation!E29,'Accomplishmets-Jobs'!$AY$10:$AY$1009,Validation!$B$2)","v":0},null,null,null,null,null,{"$f":"COUNTIFS('Accomplishmets-Jobs'!$BX$10:$BX$1009,Validation!$B$2,'Accomplishmets-Jobs'!$BB$10:$BB$1009,Validation!E29)","v":0},null,null,null,{"$f":"COUNTIFS('Accomplishmets-Jobs'!$BP$10:$BP$1009,Validation!$B$2,'Accomplishmets-Jobs'!$BB$10:$BB$1009,Validation!E29)","v":0},null,null,null,null,{"$f":"COUNTIFS('Accomplishmets-Jobs'!$BM$10:$BM$1009,Validation!$B$2,'Accomplishmets-Jobs'!$BB$10:$BB$1009,Validation!E29)","v":0}]
[null,null,null,null,null,null,null,null,null,null,null,null,"Black/African Am. & White (18)",null,null,null,null,null,null,null,null,null,null,null,null,{"$f":"COUNTIF('Accomplishmets-Jobs'!$BB$10:$BB$1009,Validation!E30)","v":0},null,null,null,{"$f":"COUNTIFS('Accomplishmets-Jobs'!$BB$10:$BB$1009,Validation!E30,'Accomplishmets-Jobs'!$AY$10:$AY$1009,Validation!$B$2)","v":0},null,null,null,null,null,{"$f":"COUNTIFS('Accomplishmets-Jobs'!$BX$10:$BX$1009,Validation!$B$2,'Accomplishmets-Jobs'!$BB$10:$BB$1009,Validation!E30)","v":0},null,null,null,{"$f":"COUNTIFS('Accomplishmets-Jobs'!$BP$10:$BP$1009,Validation!$B$2,'Accomplishmets-Jobs'!$BB$10:$BB$1009,Validation!E30)","v":0},null,null,null,null,{"$f":"COUNTIFS('Accomplishmets-Jobs'!$BM$10:$BM$1009,Validation!$B$2,'Accomplishmets-Jobs'!$BB$10:$BB$1009,Validation!E30)","v":0}]
[null,null,null,null,null,null,null,null,null,null,null,null,"Am. Indian/Alaskan & Blk/African (19)",null,null,null,null,null,null,null,null,null,null,null,null,{"$f":"COUNTIF('Accomplishmets-Jobs'!$BB$10:$BB$1009,Validation!E31)","v":0},null,null,null,{"$f":"COUNTIFS('Accomplishmets-Jobs'!$BB$10:$BB$1009,Validation!E31,'Accomplishmets-Jobs'!$AY$10:$AY$1009,Validation!$B$2)","v":0},null,null,null,null,null,{"$f":"COUNTIFS('Accomplishmets-Jobs'!$BX$10:$BX$1009,Validation!$B$2,'Accomplishmets-Jobs'!$BB$10:$BB$1009,Validation!E31)","v":0},null,null,null,{"$f":"COUNTIFS('Accomplishmets-Jobs'!$BP$10:$BP$1009,Validation!$B$2,'Accomplishmets-Jobs'!$BB$10:$BB$1009,Validation!E31)","v":0},null,null,null,null,{"$f":"COUNTIFS('Accomplishmets-Jobs'!$BM$10:$BM$1009,Validation!$B$2,'Accomplishmets-Jobs'!$BB$10:$BB$1009,Validation!E31)","v":0}]
[null,null,null,null,null,null,null,null,null,null,null,null,"Other Multi-Racial (20)",null,null,null,null,null,null,null,null,null,null,null,null,{"$f":"COUNTIF('Accomplishmets-Jobs'!$BB$10:$BB$1009,Validation!E32)","v":0},null,null,null,{"$f":"COUNTIFS('Accomplishmets-Jobs'!$BB$10:$BB$1009,Validation!E32,'Accomplishmets-Jobs'!$AY$10:$AY$1009,Validation!$B$2)","v":0},null,null,null,null,null,{"$f":"COUNTIFS('Accomplishmets-Jobs'!$BX$10:$BX$1009,Validation!$B$2,'Accomplishmets-Jobs'!$BB$10:$BB$1009,Validation!E32)","v":0},null,null,null,{"$f":"COUNTIFS('Accomplishmets-Jobs'!$BP$10:$BP$1009,Validation!$B$2,'Accomplishmets-Jobs'!$BB$10:$BB$1009,Validation!E32)","v":0},null,null,null,null,{"$f":"COUNTIFS('Accomplishmets-Jobs'!$BM$10:$BM$1009,Validation!$B$2,'Accomplishmets-Jobs'!$BB$10:$BB$1009,Validation!E32)","v":0}]
[]
[null,null,null,null,null,null,null,null,null,null,null,null,null,null,null,null,null,null,null,null,null,null,null,null,null,{"$f":"SUM(Z27:AB36)","v":0},null,null,null,{"$f":"SUM(AD27:AH36)","v":0}]
[]
[null,null,null,null,null,null,null,null,null,null,null,null,null,null,null,null,null,null,"Number of persons disable",null,null,null,null,null,null,null,null,null,null,null,null,null,null,null,null,{"$f":"SUM(AJ27:AL36)","v":0}]
[null,null,null,null,null,null,null,null,null,null,null,null,null,null,null,null,null,null,"Number of female head of households",null,null,null,null,null,null,null,null,null,null,null,null,null,null,null,null,null,null,null,null,{"$f":"SUM(AN27:AQ36)","v":0}]
[null,null,null,null,null,null,null,null,null,null,null,null,null,null,null,null,null,null,"Number of employees that are veterans",null,null,null,null,null,null,null,null,null,null,null,null,null,null,null,null,null,null,null,null,null,null,null,null,null,{"$f":"SUM(AS27:AU36)","v":0}]
[]
[null,null,null,null,null,null,null,null,null,null,null,null,"Part C",null,null,null,null,null,null,null,null,null,"JOB PERFORMANCE MEASURES",null,null,null,null,null,null,null,null,null,null,null,null,null,null,null,null,null,null,null,null,null,null,null,null,null,null,null,null,null,null,null,null,null,{"$f":"IF(AND('ED OTC - SET UP'!N85=Validation!$D$9,'ED OTC - SET UP'!$AK$85=Validation!$D$31,'ED OTC - SET UP'!$BJ$85=Validation!$F$36),\"NOT REQUIRED\",IF(AND('ED OTC - SET UP'!N85=Validation!$D$9,'ED OTC - SET UP'!$AK$85=Validation!$D$32,'ED OTC - SET UP'!$BJ$85=Validation!$F$36),\"NOT REQUIRED\",IF(AND('ED OTC - SET UP'!N85=Validation!$D$9,'ED OTC - SET UP'!$AK$85=Validation!$D$33,'ED OTC - SET UP'!$BJ$85=Validation!$F$36),\"NOT REQUIRED\",IF(AND('ED OTC - SET UP'!N85=Validation!$D$9,'ED OTC - SET UP'!$AK$85=Validation!$D$34,'ED OTC - SET UP'!$BJ$85=Validation!$F$36),\"NOT REQUIRED\",IF(AND('ED OTC - SET UP'!N85=Validation!$D$9,'ED OTC - SET UP'!$AK$85=Validation!$D$36,'ED OTC - SET UP'!$BJ$85=Validation!$F$36),\"NOT REQUIRED\",IF(AND('ED OTC - SET UP'!N85=Validation!$D$9,'ED OTC - SET UP'!$AK$85=Validation!$D$32,'ED OTC - SET UP'!$BJ$85=Validation!$F$38),\"NOT REQUIRED\",IF(AND('ED OTC - SET UP'!N85=Validation!$D$10,'ED OTC - SET UP'!$AK$85=Validation!$D$31,'ED OTC - SET UP'!$BJ$85=Validation!$F$37),\"REQUIRED\",IF(AND('ED OTC - SET UP'!N85=Validation!$D$10,'ED OTC - SET UP'!$AK$85=Validation!$D$32,'ED OTC - SET UP'!$BJ$85=Validation!$F$36),\"REQUIRED\",IF(AND('ED OTC - SET UP'!N85=Validation!$D$10,'ED OTC - SET UP'!$AK$85=Validation!$D$32,'ED OTC - SET UP'!$BJ$85=Validation!$F$38),\"REQUIRED\",IF(AND('ED OTC - SET UP'!N85=Validation!$D$10,'ED OTC - SET UP'!$AK$85=Validation!$D$33,'ED OTC - SET UP'!$BJ$85=Validation!$F$37),\"REQUIRED\",IF(AND('ED OTC - SET UP'!N85=Validation!$D$10,'ED OTC - SET UP'!$AK$85=Validation!$D$34,'ED OTC - SET UP'!$BJ$85=Validation!$F$37),\"REQUIRED\",IF(AND('ED OTC - SET UP'!N85=Validation!$D$10,'ED OTC - SET UP'!$AK$85=Validation!$D$36,'ED OTC - SET UP'!$BJ$85=Validation!$F$37),\"REQUIRED\",IF(AND('ED OTC - SET UP'!N85=Validation!$D$11,'ED OTC - SET UP'!$AK$85=Validation!$D$31,'ED OTC - SET UP'!$BJ$85=Validation!$F$36),\"NOT REQUIRED\",IF(AND('ED OTC - SET UP'!N85=Validation!$D$11,'ED OTC - SET UP'!$AK$85=Validation!$D$32,'ED OTC - SET UP'!$BJ$85=Validation!$F$36),\"NOT REQUIRED\",IF(AND('ED OTC - SET UP'!N85=Validation!$D$11,'ED OTC - SET UP'!$AK$85=Validation!$D$32,'ED OTC - SET UP'!$BJ$85=Validation!$F$38),\"NOT REQUIRED\",IF(AND('ED OTC - SET UP'!N85=Validation!$D$11,'ED OTC - SET UP'!$AK$85=Validation!$D$34,'ED OTC - SET UP'!$BJ$85=Validation!$F$36),\"NOT REQUIRED\",IF(AND('ED OTC - SET UP'!N85=Validation!D10,'ED OTC - SET UP'!AK85=Validation!D35,'ED OTC - SET UP'!BJ85=Validation!F37),\"REQUIRED\",\"NOT REQUIRED\")))))))))))))))))","v":"NOT REQUIRED"}]
[]
[null,null,null,null,null,null,null,null,null,null,null,null,null,"Proposed Accomplishments",null,null,null,null,null,null,null,null,null,"Total Job Count",null,null,null,null,null,null,null,null,null,null,null,null,null,null,null,null,"Total Weekly Hours",null,null,null,null,null,null,null,null,null,null,null,null,null,null,null,null,null,"CREATED"]
[]
[null,null,null,null,null,null,null,null,null,null,null,null,null,null,null,null,null,null,null,null,null,null,null,"Full Time",null,null,null,null,null,"Full Time Low/Mod",null,null,null,null,null,null,null,null,null,null,"Part Time",null,null,null,null,null,"Part Time Low/Mod",null,null,null,null,null,null,null,null,null,null,null,"Of jobs created, number of jobs with employer sponsored health care benefits."]
[]
[null,null,null,null,null,null,null,null,null,null,null,null,null,"Actually Created",null,null,null,null,null,null,null,null,null,null,{"$f":"COUNTIFS('Accomplishmets-Jobs'!L10:L1009,Validation!B58,'Accomplishmets-Jobs'!R10:R1009,Validation!B63)","v":0},null,null,null,null,null,{"$f":"COUNTIFS('Accomplishmets-Jobs'!L10:L1009,Validation!B58,'Accomplishmets-Jobs'!R10:R1009,Validation!B63,'Accomplishmets-Jobs'!AP10:AP1009,Validation!E36)+COUNTIFS('Accomplishmets-Jobs'!L10:L1009,Validation!B58,'Accomplishmets-Jobs'!R10:R1009,Validation!B63,'Accomplishmets-Jobs'!AP10:AP1009,Validation!E37)+COUNTIFS('Accomplishmets-Jobs'!L10:L1009,Validation!B58,'Accomplishmets-Jobs'!R10:R1009,Validation!B63,'Accomplishmets-Jobs'!AP10:AP1009,Validation!E38)","v":0},null,null,null,null,"Total",null,null,null,null,null,{"$f":"SUMIFS('Accomplishmets-Jobs'!X10:X1009,'Accomplishmets-Jobs'!L10:L1009,Validation!B58,'Accomplishmets-Jobs'!R10:R1009,Validation!B64)","v":0},null,null,null,null,null,{"$f":"SUMIFS('Accomplishmets-Jobs'!X10:X1009,'Accomplishmets-Jobs'!L10:L1009,Validation!B58,'Accomplishmets-Jobs'!R10:R1009,Validation!B64,'Accomplishmets-Jobs'!AP10:AP1009,Validation!E36)+SUMIFS('Accomplishmets-Jobs'!X10:X1009,'Accomplishmets-Jobs'!L10:L1009,Validation!B58,'Accomplishmets-Jobs'!R10:R1009,Validation!B64,'Accomplishmets-Jobs'!AP10:AP1009,Validation!E37)+SUMIFS('Accomplishmets-Jobs'!X10:X1009,'Accomplishmets-Jobs'!L10:L1009,Validation!B58,'Accomplishmets-Jobs'!R10:R1009,Validation!B64,'Accomplishmets-Jobs'!AP10:AP1009,Validation!E38)","v":0},null,null,null,null,"Total",null,null,null,null,null,null,null,null,null,null,null,null,null,null,null,null,null,null,null,null,null,null,{"$f":"COUNTIFS('Accomplishmets-Jobs'!L10:L1009,Validation!B58,'Accomplishmets-Jobs'!AM10:AM1009,Validation!B2)","v":0}]
[null,null,null,null,null,null,null,null,null,null,null,null,null,null,null,null,null,null,null,null,null,null,null,null,null,null,null,null,null,null,null,null,null,null,null,null,null,null,null,null,null,null,null,null,null,null,null,null,null,null,null,null,null,null,null,null,null,null,"Of jobs created, number of persons unemployed prior to taking jobs created under this activity."]
[null,null,null,null,null,null,null,null,null,null,null,null,null,"Actually Retained",null,null,null,null,null,null,null,null,null,null,{"$f":"COUNTIFS('Accomplishmets-Jobs'!L10:L1009,Validation!B59,'Accomplishmets-Jobs'!R10:R1009,Validation!B63)","v":0},null,null,null,null,null,{"$f":"COUNTIFS('Accomplishmets-Jobs'!L10:L1009,Validation!B59,'Accomplishmets-Jobs'!R10:R1009,Validation!B63,'Accomplishmets-Jobs'!AP10:AP1009,Validation!E36)+COUNTIFS('Accomplishmets-Jobs'!L10:L1009,Validation!B59,'Accomplishmets-Jobs'!R10:R1009,Validation!B63,'Accomplishmets-Jobs'!AP10:AP1009,Validation!E37)+COUNTIFS('Accomplishmets-Jobs'!L10:L1009,Validation!B59,'Accomplishmets-Jobs'!R10:R1009,Validation!B63,'Accomplishmets-Jobs'!AP10:AP1009,Validation!E38)","v":0},null,null,null,null,{"$f":"SUM(AE50,AE52)","v":0},null,null,null,null,null,{"$f":"SUMIFS('Accomplishmets-Jobs'!X10:X1009,'Accomplishmets-Jobs'!L10:L1009,Validation!B59,'Accomplishmets-Jobs'!R10:R1009,Validation!B64)","v":0},null,null,null,null,null,{"$f":"SUMIFS('Accomplishmets-Jobs'!X10:X1009,'Accomplishmets-Jobs'!L10:L1009,Validation!B59,'Accomplishmets-Jobs'!R10:R1009,Validation!B64,'Accomplishmets-Jobs'!AP10:AP1009,Validation!E36)+SUMIFS('Accomplishmets-Jobs'!X10:X1009,'Accomplishmets-Jobs'!L10:L1009,Validation!B59,'Accomplishmets-Jobs'!R10:R1009,Validation!B64,'Accomplishmets-Jobs'!AP10:AP1009,Validation!E37)+SUMIFS('Accomplishmets-Jobs'!X10:X1009,'Accomplishmets-Jobs'!L10:L1009,Validation!B59,'Accomplishmets-Jobs'!R10:R1009,Validation!B64,'Accomplishmets-Jobs'!AP10:AP1009,Validation!E38)","v":0},null,null,null,null,{"$f":"SUM(AV50,AV52)","v":0}]
[null,null,null,null,null,null,null,null,null,null,null,null,null,null,null,null,null,null,null,null,null,null,null,null,null,null,null,null,null,null,null,null,null,null,null,null,null,null,null,null,null,null,null,null,null,null,null,null,null,null,null,null,null,null,null,null,null,null,null,null,null,null,null,null,null,null,null,null,null,null,null,null,null,null,null,{"$f":"COUNTIFS('Accomplishmets-Jobs'!L10:L1009,Validation!B58,'Accomplishmets-Jobs'!AH10:AH1009,Validation!B2)","v":0}]
[]
[null,null,null,null,null,null,null,null,null,null,null,null,null,"Job Category",null,null,null,null,null,null,null,null,null,null,"Jobs Created",null,null,null,null,null,null,null,null,"Jobs Retained"]
[null,null,null,null,null,null,null,null,null,null,null,null,null,"Officials and Managers",null,null,null,null,null,null,null,null,null,null,null,null,{"$f":"COUNTIFS('Accomplishmets-Jobs'!$D$10:$D$1009,Validation!B47,'Accomplishmets-Jobs'!$L$10:$L$1009,Validation!$B$58)","v":0},null,null,null,null,null,null,null,null,{"$f":"COUNTIFS('Accomplishmets-Jobs'!$D$10:$D$1009,Validation!B47,'Accomplishmets-Jobs'!$L$10:$L$1009,Validation!$B$59)","v":0},null,null,null,null,null,null,null,null,null,null,null,null,null,null,null,null,null,null,null,null,null,null,"RETAINED"]
[null,null,null,null,null,null,null,null,null,null,null,null,null,"Professional",null,null,null,null,null,null,null,null,null,null,null,null,{"$f":"COUNTIFS('Accomplishmets-Jobs'!$D$10:$D$1009,Validation!B48,'Accomplishmets-Jobs'!$L$10:$L$1009,Validation!$B$58)","v":0},null,null,null,null,null,null,null,null,{"$f":"COUNTIFS('Accomplishmets-Jobs'!$D$10:$D$1009,Validation!B48,'Accomplishmets-Jobs'!$L$10:$L$1009,Validation!$B$59)","v":0},null,null,null,null,null,null,null,null,null,null,null,null,null,null,null,null,null,null,null,null,null,null,"Of jobs retained, number of jobs with sponsored employer health care benefits."]
[null,null,null,null,null,null,null,null,null,null,null,null,null,"Technicians",null,null,null,null,null,null,null,null,null,null,null,null,{"$f":"COUNTIFS('Accomplishmets-Jobs'!$D$10:$D$1009,Validation!B49,'Accomplishmets-Jobs'!$L$10:$L$1009,Validation!$B$58)","v":0},null,null,null,null,null,null,null,null,{"$f":"COUNTIFS('Accomplishmets-Jobs'!$D$10:$D$1009,Validation!B49,'Accomplishmets-Jobs'!$L$10:$L$1009,Validation!$B$59)","v":0}]
[null,null,null,null,null,null,null,null,null,null,null,null,null,"Sales",null,null,null,null,null,null,null,null,null,null,null,null,{"$f":"COUNTIFS('Accomplishmets-Jobs'!$D$10:$D$1009,Validation!B50,'Accomplishmets-Jobs'!$L$10:$L$1009,Validation!$B$58)","v":0},null,null,null,null,null,null,null,null,{"$f":"COUNTIFS('Accomplishmets-Jobs'!$D$10:$D$1009,Validation!B50,'Accomplishmets-Jobs'!$L$10:$L$1009,Validation!$B$59)","v":0},null,null,null,null,null,null,null,null,null,null,null,null,null,null,null,null,null,null,null,null,null,null,null,null,null,null,null,null,null,null,null,null,null,null,null,null,null,null,null,{"$f":"COUNTIFS('Accomplishmets-Jobs'!L10:L1009,Validation!B59,'Accomplishmets-Jobs'!AM10:AM1009,Validation!B2)","v":0}]
[null,null,null,null,null,null,null,null,null,null,null,null,null,"Office and Clerical",null,null,null,null,null,null,null,null,null,null,null,null,{"$f":"COUNTIFS('Accomplishmets-Jobs'!$D$10:$D$1009,Validation!B51,'Accomplishmets-Jobs'!$L$10:$L$1009,Validation!$B$58)","v":0},null,null,null,null,null,null,null,null,{"$f":"COUNTIFS('Accomplishmets-Jobs'!$D$10:$D$1009,Validation!B51,'Accomplishmets-Jobs'!$L$10:$L$1009,Validation!$B$59)","v":0}]
[null,null,null,null,null,null,null,null,null,null,null,null,null,"Craft Workers (Skilled)",null,null,null,null,null,null,null,null,null,null,null,null,{"$f":"COUNTIFS('Accomplishmets-Jobs'!$D$10:$D$1009,Validation!B52,'Accomplishmets-Jobs'!$L$10:$L$1009,Validation!$B$58)","v":0},null,null,null,null,null,null,null,null,{"$f":"COUNTIFS('Accomplishmets-Jobs'!$D$10:$D$1009,Validation!B52,'Accomplishmets-Jobs'!$L$10:$L$1009,Validation!$B$59)","v":0}]
[null,null,null,null,null,null,null,null,null,null,null,null,null,"Operatives (Semi-Skilled)",null,null,null,null,null,null,null,null,null,null,null,null,{"$f":"COUNTIFS('Accomplishmets-Jobs'!$D$10:$D$1009,Validation!B53,'Accomplishmets-Jobs'!$L$10:$L$1009,Validation!$B$58)","v":0},null,null,null,null,null,null,null,null,{"$f":"COUNTIFS('Accomplishmets-Jobs'!$D$10:$D$1009,Validation!B53,'Accomplishmets-Jobs'!$L$10:$L$1009,Validation!$B$59)","v":0}]
[null,null,null,null,null,null,null,null,null,null,null,null,null,"Laborers (Unskilled)",null,null,null,null,null,null,null,null,null,null,null,null,{"$f":"COUNTIFS('Accomplishmets-Jobs'!$D$10:$D$1009,Validation!B54,'Accomplishmets-Jobs'!$L$10:$L$1009,Validation!$B$58)","v":0},null,null,null,null,null,null,null,null,{"$f":"COUNTIFS('Accomplishmets-Jobs'!$D$10:$D$1009,Validation!B54,'Accomplishmets-Jobs'!$L$10:$L$1009,Validation!$B$59)","v":0}]
[null,null,null,null,null,null,null,null,null,null,null,null,null,"Service Workers",null,null,null,null,null,null,null,null,null,null,null,null,{"$f":"COUNTIFS('Accomplishmets-Jobs'!$D$10:$D$1009,Validation!B55,'Accomplishmets-Jobs'!$L$10:$L$1009,Validation!$B$58)","v":0},null,null,null,null,null,null,null,null,{"$f":"COUNTIFS('Accomplishmets-Jobs'!$D$10:$D$1009,Validation!B55,'Accomplishmets-Jobs'!$L$10:$L$1009,Validation!$B$59)","v":0}]
[]
[null,null,null,null,null,null,null,null,null,null,null,null,"END OF DOCUMENT"]

{"sheet":"Accomplishmets-Jobs","index":2,"n_rows":1012,"n_cols":93,"rows_kept":1012,"cut":false,"hidden":false,"merged":[[0,1,0,205],[688,92,706,94],[707,92,725,94],[726,92,744,94],[745,92,763,94],[764,92,782,94],[783,92,801,94],[802,92,820,94],[821,92,839,94],[840,92,858,94],[859,92,877,94],[878,92,896,94],[897,92,915,94],[916,92,934,94],[935,92,953,94],[954,92,972,94],[973,92,991,94],[992,92,1008,94],[1,92,22,94],[23,92,41,94],[42,92,60,94],[61,92,79,94],[80,92,98,94],[99,92,117,94],[118,92,136,94],[137,92,155,94],[156,92,174,94],[175,92,193,94],[194,92,212,94],[213,92,231,94],[232,92,250,94],[251,92,269,94],[270,92,288,94],[289,92,307,94],[308,92,326,94],[327,92,345,94],[346,92,364,94],[365,92,383,94],[384,92,402,94],[403,92,421,94],[422,92,440,94],[441,92,459,94],[460,92,478,94],[479,92,497,94],[498,92,516,94],[517,92,535,94],[7,78,7,90],[15,87,15,88],[16,87,16,88],[17,87,17,88],[18,87,18,88],[19,87,19,88],[20,87,20,88],[21,87,21,88],[22,87,22,88],[23,87,23,88],[24,87,24,88],[25,87,25,88],[26,87,26,88],[27,87,27,88],[28,83,28,86],[29,87,29,88],[30,87,30,88],[31,87,31,88],[32,87,32,88],[33,87,33,88],[34,87,34,88],[35,87,35,88],[36,87,36,88],[37,83,37,86],[29,83,29,86],[536,92,554,94],[555,92,573,94],[574,92,592,94],[593,92,611,94],[612,92,630,94],[631,92,649,94],[650,92,668,94],[669,92,687,94],[39,87,39,88],[40,87,40,88],[41,87,41,88],[9,89,9,90],[10,89,10,90],[11,89,11,90],[12,89,12,90],[13,89,13,90],[14,89,14,90],[15,89,15,90],[16,89,16,90],[17,89,17,90],[18,89,18,90],[19,89,19,90],[20,89,20,90],[21,89,21,90],[22,89,22,90],[23,89,23,90],[24,89,24,90],[25,89,25,90],[26,89,26,90],[28,87,28,88],[36,89,36,90],[37,89,37,90],[38,89,38,90],[39,89,39,90],[40,89,40,90],[41,89,41,90],[27,89,27,90],[28,89,28,90],[29,89,29,90],[30,89,30,90],[31,89,31,90],[32,89,32,90],[33,89,33,90],[34,89,34,90],[35,89,35,90],[30,83,30,86],[31,83,31,86],[32,83,32,86],[33,83,33,86],[34,83,34,86],[35,83,35,86],[36,83,36,86],[37,87,37,88],[38,87,38,88],[41,1,41,2],[41,3,41,10],[41,11,41,16],[41,17,41,22],[41,23,41,26],[41,27,41,32],[41,33,41,37],[41,38,41,40],[41,41,41,49],[41,50,41,52],[41,53,41,63],[41,64,41,66],[41,67,41,71],[41,72,41,74],[41,75,41,77],[41,78,41,82],[40,1,40,2],[40,3,40,10],[10,83,10,86],[11,83,11,86],[12,83,12,86],[13,83,13,86],[14,83,14,86],[15,83,15,86],[16,83,16,86],[17,83,17,86],[18,83,18,86],[19,83,19,86],[20,83,20,86],[21,83,21,86],[22,83,22,86],[23,83,23,86],[24,83,24,86],[25,83,25,86],[26,83,26,86],[27,83,27,86],[38,83,38,86],[39,83,39,86],[40,83,40,86],[41,83,41,86],[38,53,38,63],[38,64,38,66],[38,67,38,71],[38,72,38,74],[38,75,38,77],[38,78,38,82],[39,1,39,2],[39,3,39,10],[39,11,39,16],[39,17,39,22],[39,23,39,26],[39,27,39,32],[39,33,39,37],[39,38,39,40],[39,41,39,49],[39,50,39,52],[39,53,39,63],[39,64,39,66],[39,67,39,71],[39,72,39,74],[39,75,39,77],[39,78,39,82],[38,1,38,2],[38,3,38,10],[40,11,40,16],[40,17,40,22],[40,23,40,26],[40,27,40,32],[40,33,40,37],[40,38,40,40],[40,41,40,49],[38,50,38,52],[38,11,38,16],[38,17,38,22],[38,23,38,26],[38,27,38,32],[38,33,38,37],[38,38,38,40],[38,41,38,49],[40,50,40,52],[40,53,40,63],[40,64,40,66],[40,67,40,71],[40,72,40,74],[40,75,40,77],[40,78,40,82],[35,72,35,74],[35,75,35,77],[35,78,35,82],[34,17,34,22],[34,23,34,26],[34,27,34,32],[34,33,34,37],[34,38,34,40],[36,27,36,32],[36,33,36,37],[36,38,36,40],[36,41,36,49],[34,67,34,71],[34,41,34,49],[34,50,34,52],[34,53,34,63],[34,64,34,66],[36,50,36,52],[36,53,36,63],[36,64,36,66],[36,67,36,71],[36,72,36,74],[36,75,36,77],[36,78,36,82],[37,1,37,2],[37,3,37,10],[37,11,37,16],[37,17,37,22],[37,23,37,26],[37,27,37,32],[37,33,37,37],[37,38,37,40],[37,41,37,49],[37,50,37,52],[37,53,37,63],[37,64,37,66],[37,67,37,71],[37,72,37,74],[37,75,37,77],[37,78,37,82],[36,1,36,2],[36,3,36,10],[36,11,36,16],[36,17,36,22],[36,23,36,26],[1011,1,1014,90],[31,1,31,2],[31,3,31,10],[31,11,31,16],[31,17,31,22],[31,23,31,26],[31,27,31,32],[31,33,31,37],[31,38,31,40],[31,41,31,49],[31,50,31,52],[31,53,31,63],[31,64,31,66],[31,67,31,71],[31,72,31,74],[31,75,31,77],[31,78,31,82],[32,1,32,2],[32,3,32,10],[32,11,32,16],[32,17,32,22],[32,67,32,71],[32,72,32,74],[32,75,32,77],[32,78,32,82],[33,1,33,2],[33,3,33,10],[33,11,33,16],[33,17,33,22],[33,23,33,26],[33,27,33,32],[33,33,33,37],[33,38,33,40],[33,41,33,49],[33,50,33,52],[33,53,33,63],[33,64,33,66],[33,67,33,71],[33,72,33,74],[33,75,33,77],[33,78,33,82],[32,23,32,26],[32,27,32,32],[20,75,20,77],[21,75,21,77],[22,75,22,77],[23,75,23,77],[24,75,24,77],[25,75,25,77],[26,75,26,77],[27,75,27,77],[28,75,28,77],[29,75,29,77],[30,75,30,77],[19,33,19,37],[19,38,19,40],[19,41,19,49],[19,50,19,52],[19,1,19,2],[19,3,19,10],[19,11,19,16],[19,17,19,22],[19,23,19,26],[19,27,19,32],[18,33,18,37],[18,38,18,40],[18,41,18,49],[18,50,18,52],[18,1,18,2],[18,3,18,10],[18,11,18,16],[18,17,18,22],[18,23,18,26],[18,27,18,32],[17,33,17,37],[17,38,17,40],[17,41,17,49],[17,50,17,52],[17,1,17,2],[17,3,17,10],[17,11,17,16],[19,67,19,71],[20,67,20,71],[21,67,21,71],[22,67,22,71],[23,67,23,71],[24,67,24,71],[25,67,25,71],[26,67,26,71],[27,67,27,71],[28,67,28,71],[29,67,29,71],[30,67,30,71],[21,38,21,40],[21,41,21,49],[21,50,21,52],[21,53,21,63],[21,64,21,66],[21,1,21,2],[21,3,21,10],[21,11,21,16],[21,17,21,22],[21,23,21,26],[21,27,21,32],[20,33,20,37],[20,38,20,40],[20,41,20,49],[32,33,32,37],[32,38,32,40],[32,41,32,49],[32,50,32,52],[32,53,32,63],[34,72,34,74],[34,75,34,77],[34,78,34,82],[35,1,35,2],[35,3,35,10],[35,11,35,16],[35,17,35,22],[35,23,35,26],[35,27,35,32],[35,33,35,37],[35,38,35,40],[35,41,35,49],[35,50,35,52],[35,53,35,63],[35,64,35,66],[35,67,35,71],[15,72,15,74],[16,72,16,74],[17,72,17,74],[18,72,18,74],[19,72,19,74],[20,72,20,74],[21,72,21,74],[22,72,22,74],[23,72,23,74],[24,72,24,74],[25,72,25,74],[26,72,26,74],[27,72,27,74],[28,72,28,74],[29,72,29,74],[30,72,30,74],[20,78,20,82],[21,78,21,82],[22,78,22,82],[23,78,23,82],[24,78,24,82],[25,78,25,82],[26,78,26,82],[27,78,27,82],[28,78,28,82],[29,78,29,82],[30,78,30,82],[17,17,17,22],[17,23,17,26],[17,27,17,32],[22,33,22,37],[22,38,22,40],[22,41,22,49],[22,50,22,52],[22,53,22,63],[22,64,22,66],[22,1,22,2],[22,3,22,10],[22,11,22,16],[22,17,22,22],[22,23,22,26],[22,27,22,32],[21,33,21,37],[8,78,8,82],[8,83,8,86],[8,87,8,88],[8,89,8,90],[8,67,8,71],[9,67,9,71],[9,78,9,82],[9,83,9,86],[8,72,8,74],[8,75,8,77],[8,53,8,63],[8,64,8,66],[10,67,10,71],[11,67,11,71],[12,67,12,71],[13,67,13,71],[14,67,14,71],[19,53,19,63],[19,64,19,66],[18,53,18,63],[18,64,18,66],[17,53,17,63],[17,64,17,66],[10,78,10,82],[11,78,11,82],[12,78,12,82],[13,78,13,82],[14,78,14,82],[15,78,15,82],[16,78,16,82],[17,78,17,82],[18,78,18,82],[19,78,19,82],[15,67,15,71],[16,67,16,71],[17,67,17,71],[18,67,18,71],[15,75,15,77],[16,75,16,77],[17,75,17,77],[18,75,18,77],[19,75,19,77],[10,50,10,52],[10,53,10,63],[10,64,10,66],[11,50,11,52],[11,53,11,63],[11,64,11,66],[12,33,12,37],[12,38,12,40],[12,41,12,49],[12,50,12,52],[12,53,12,63],[12,64,12,66],[13,50,13,52],[13,53,13,63],[13,64,13,66],[14,33,14,37],[9,75,9,77],[10,75,10,77],[11,75,11,77],[12,75,12,77],[13,75,13,77],[14,75,14,77],[9,87,9,88],[10,87,10,88],[11,87,11,88],[12,87,12,88],[13,87,13,88],[14,87,14,88],[12,1,12,2],[12,3,12,10],[12,11,12,16],[12,17,12,22],[12,23,12,26],[12,27,12,32],[13,33,13,37],[13,38,13,40],[13,41,13,49],[13,1,13,2],[13,3,13,10],[13,11,13,16],[13,17,13,22],[13,23,13,26],[13,27,13,32],[10,1,10,2],[10,3,10,10],[10,11,10,16],[10,17,10,22],[10,23,10,26],[10,27,10,32],[11,33,11,37],[11,38,11,40],[11,41,11,49],[11,1,11,2],[11,3,11,10],[11,11,11,16],[11,17,11,22],[11,23,11,26],[11,27,11,32],[9,72,9,74],[10,72,10,74],[11,72,11,74],[12,72,12,74],[13,72,13,74],[14,72,14,74],[1,1,3,12],[1,45,3,50],[8,1,8,2],[8,3,8,10],[9,1,9,2],[9,3,9,10],[9,11,9,16],[9,17,9,22],[9,23,9,26],[9,27,9,32],[8,11,8,16],[8,17,8,22],[8,23,8,26],[8,27,8,32],[9,33,9,37],[9,38,9,40],[9,41,9,49],[9,50,9,52],[8,33,8,37],[8,38,8,40],[5,1,5,77],[7,1,7,77],[9,53,9,63],[9,64,9,66],[8,41,8,49],[8,50,8,52],[16,33,16,37],[16,38,16,40],[16,41,16,49],[16,50,16,52],[16,53,16,63],[16,64,16,66],[16,1,16,2],[16,3,16,10],[16,11,16,16],[16,17,16,22],[16,23,16,26],[16,27,16,32],[15,33,15,37],[15,38,15,40],[15,41,15,49],[15,50,15,52],[15,53,15,63],[15,64,15,66],[15,1,15,2],[15,3,15,10],[15,11,15,16],[15,17,15,22],[15,23,15,26],[15,27,15,32],[14,38,14,40],[14,41,14,49],[14,50,14,52],[14,53,14,63],[14,64,14,66],[14,1,14,2],[14,3,14,10],[14,11,14,16],[14,17,14,22],[14,23,14,26],[14,27,14,32],[10,33,10,37],[10,38,10,40],[10,41,10,49],[20,50,20,52],[20,53,20,63],[20,64,20,66],[20,1,20,2],[20,3,20,10],[20,11,20,16],[20,17,20,22],[20,23,20,26],[20,27,20,32],[26,23,26,26],[26,27,26,32],[25,33,25,37],[25,38,25,40],[25,41,25,49],[25,50,25,52],[25,53,25,63],[25,64,25,66],[25,1,25,2],[25,3,25,10],[25,11,25,16],[25,17,25,22],[25,23,25,26],[25,27,25,32],[24,33,24,37],[24,38,24,40],[24,41,24,49],[24,50,24,52],[24,53,24,63],[24,64,24,66],[24,1,24,2],[24,3,24,10],[24,11,24,16],[24,17,24,22],[24,23,24,26],[24,27,24,32],[23,33,23,37],[23,38,23,40],[23,41,23,49],[23,50,23,52],[23,53,23,63],[23,64,23,66],[23,1,23,2],[23,3,23,10],[23,11,23,16],[23,17,23,22],[23,23,23,26],[23,27,23,32],[32,64,32,66],[34,1,34,2],[34,3,34,10],[34,11,34,16],[1,14,3,43],[1,52,3,69],[30,33,30,37],[30,38,30,40],[30,41,30,49],[30,50,30,52],[30,53,30,63],[30,64,30,66],[30,1,30,2],[30,3,30,10],[30,11,30,16],[30,17,30,22],[30,23,30,26],[30,27,30,32],[29,33,29,37],[29,38,29,40],[29,41,29,49],[29,50,29,52],[29,53,29,63],[29,64,29,66],[29,1,29,2],[29,3,29,10],[29,11,29,16],[29,17,29,22],[29,23,29,26],[29,27,29,32],[28,33,28,37],[28,38,28,40],[28,41,28,49],[28,50,28,52],[28,53,28,63],[28,64,28,66],[28,1,28,2],[28,3,28,10],[28,11,28,16],[28,17,28,22],[28,23,28,26],[28,27,28,32],[27,33,27,37],[27,38,27,40],[27,41,27,49],[27,50,27,52],[27,53,27,63],[27,64,27,66],[27,1,27,2],[27,3,27,10],[27,11,27,16],[27,17,27,22],[27,23,27,26],[27,27,27,32],[26,33,26,37],[26,38,26,40],[26,41,26,49],[26,50,26,52],[26,53,26,63],[26,64,26,66],[26,1,26,2],[26,3,26,10],[26,11,26,16],[26,17,26,22],[44,50,44,52],[44,53,44,63],[44,64,44,66],[44,67,44,71],[44,72,44,74],[44,75,44,77],[45,1,45,2],[45,3,45,10],[45,11,45,16],[45,17,45,22],[45,23,45,26],[45,27,45,32],[45,33,45,37],[45,38,45,40],[45,41,45,49],[45,50,45,52],[45,53,45,63],[45,64,45,66],[45,67,45,71],[45,72,45,74],[45,75,45,77],[44,1,44,2],[44,3,44,10],[44,11,44,16],[44,17,44,22],[44,23,44,26],[44,27,44,32],[44,33,44,37],[44,38,44,40],[44,41,44,49],[42,50,42,52],[42,53,42,63],[42,64,42,66],[42,67,42,71],[42,72,42,74],[42,75,42,77],[43,1,43,2],[43,3,43,10],[43,11,43,16],[43,17,43,22],[43,23,43,26],[43,27,43,32],[43,33,43,37],[43,38,43,40],[43,41,43,49],[43,50,43,52],[43,53,43,63],[43,64,43,66],[43,67,43,71],[43,72,43,74],[43,75,43,77],[42,1,42,2],[42,3,42,10],[42,11,42,16],[42,17,42,22],[42,23,42,26],[42,27,42,32],[42,33,42,37],[42,38,42,40],[42,41,42,49],[48,50,48,52],[48,53,48,63],[48,64,48,66],[48,67,48,71],[48,72,48,74],[48,75,48,77],[49,1,49,2],[49,3,49,10],[49,11,49,16],[49,17,49,22],[49,23,49,26],[49,27,49,32],[49,33,49,37],[49,38,49,40],[49,41,49,49],[49,50,49,52],[49,53,49,63],[49,64,49,66],[49,67,49,71],[49,72,49,74],[49,75,49,77],[48,1,48,2],[48,3,48,10],[48,11,48,16],[48,17,48,22],[48,23,48,26],[48,27,48,32],[48,33,48,37],[48,38,48,40],[48,41,48,49],[46,50,46,52],[46,53,46,63],[46,64,46,66],[46,67,46,71],[46,72,46,74],[46,75,46,77],[47,1,47,2],[47,3,47,10],[47,11,47,16],[47,17,47,22],[47,23,47,26],[47,27,47,32],[47,33,47,37],[47,38,47,40],[47,41,47,49],[47,50,47,52],[47,53,47,63],[47,64,47,66],[47,67,47,71],[47,72,47,74],[47,75,47,77],[46,1,46,2],[46,3,46,10],[46,11,46,16],[46,17,46,22],[46,23,46,26],[46,27,46,32],[46,33,46,37],[46,38,46,40],[46,41,46,49],[52,50,52,52],[52,53,52,63],[52,64,52,66],[52,67,52,71],[52,72,52,74],[52,75,52,77],[53,1,53,2],[53,3,53,10],[53,11,53,16],[53,17,53,22],[53,23,53,26],[53,27,53,32],[53,33,53,37],[53,38,53,40],[53,41,53,49],[53,50,53,52],[53,53,53,63],[53,64,53,66],[53,67,53,71],[53,72,53,74],[53,75,53,77],[52,1,52,2],[52,3,52,10],[52,11,52,16],[52,17,52,22],[52,23,52,26],[52,27,52,32],[52,33,52,37],[52,38,52,40],[52,41,52,49],[50,50,50,52],[50,53,50,63],[50,64,50,66],[50,67,50,71],[50,72,50,74],[50,75,50,77],[51,1,51,2],[51,3,51,10],[51,11,51,16],[51,17,51,22],[51,23,51,26],[51,27,51,32],[51,33,51,37],[51,38,51,40],[51,41,51,49],[51,50,51,52],[51,53,51,63],[51,64,51,66],[51,67,51,71],[51,72,51,74],[51,75,51,77],[50,1,50,2],[50,3,50,10],[50,11,50,16],[50,17,50,22],[50,23,50,26],[50,27,50,32],[50,33,50,37],[50,38,50,40],[50,41,50,49],[56,50,56,52],[56,53,56,63],[56,64,56,66],[56,67,56,71],[56,72,56,74],[56,75,56,77],[57,1,57,2],[57,3,57,10],[57,11,57,16],[57,17,57,22],[57,23,57,26],[57,27,57,32],[57,33,57,37],[57,38,57,40],[57,41,57,49],[57,50,57,52],[57,53,57,63],[57,64,57,66],[57,67,57,71],[57,72,57,74],[57,75,57,77],[56,1,56,2],[56,3,56,10],[56,11,56,16],[56,17,56,22],[56,23,56,26],[56,27,56,32],[56,33,56,37],[56,38,56,40],[56,41,56,49],[54,50,54,52],[54,53,54,63],[54,64,54,66],[54,67,54,71],[54,72,54,74],[54,75,54,77],[55,1,55,2],[55,3,55,10],[55,11,55,16],[55,17,55,22],[55,23,55,26],[55,27,55,32],[55,33,55,37],[55,38,55,40],[55,41,55,49],[55,50,55,52],[55,53,55,63],[55,64,55,66],[55,67,55,71],[55,72,55,74],[55,75,55,77],[54,1,54,2],[54,3,54,10],[54,11,54,16],[54,17,54,22],[54,23,54,26],[54,27,54,32],[54,33,54,37],[54,38,54,40],[54,41,54,49],[60,50,60,52],[60,53,60,63],[60,64,60,66],[60,67,60,71],[60,72,60,74],[60,75,60,77],[61,1,61,2],[61,3,61,10],[61,11,61,16],[61,17,61,22],[61,23,61,26],[61,27,61,32],[61,33,61,37],[61,38,61,40],[61,41,61,49],[61,50,61,52],[61,53,61,63],[61,64,61,66],[61,67,61,71],[61,72,61,74],[61,75,61,77],[60,1,60,2],[60,3,60,10],[60,11,60,16],[60,17,60,22],[60,23,60,26],[60,27,60,32],[60,33,60,37],[60,38,60,40],[60,41,60,49],[58,50,58,52],[58,53,58,63],[58,64,58,66],[58,67,58,71],[58,72,58,74],[58,75,58,77],[59,1,59,2],[59,3,59,10],[59,11,59,16],[59,17,59,22],[59,23,59,26],[59,27,59,32],[59,33,59,37],[59,38,59,40],[59,41,59,49],[59,50,59,52],[59,53,59,63],[59,64,59,66],[59,67,59,71],[59,72,59,74],[59,75,59,77],[58,1,58,2]],"merged_total":15213,"flags":["merged_cut"]}
[null,"Only two pages are unhidden, if you need additional pages to input data, press button(s) on the right to unhide additional pages. Please, only unhide pages as needed."]
[null,"Jurisdiction Name:",null,null,null,null,null,null,null,null,null,null,null,null,{"$f":"IF('ED OTC - SET UP'!X2>0,'ED OTC - SET UP'!X2,\"\")","v":""},null,null,null,null,null,null,null,null,null,null,null,null,null,null,null,null,null,null,null,null,null,null,null,null,null,null,null,null,null,null,"Contract #",null,null,null,null,null,null,{"$f":"IF('ED OTC - SET UP'!BJ2>0,'ED OTC - SET UP'!BJ2,\"\")","v":""},null,null,null,null,null,null,null,null,null,null,null,null,null,null,null,null,null,null,null,null,null,null,null,null,null,null,null,null,null,null,null,null,null,null,null,null,null,null,null,"Page 1"]
[]
[]
[]
[null,"DIRECT BENEFIT DATA BY JOBS"]
[]
[null,{"$f":"IF(AND('ED OTC - SET UP'!N85=Validation!$D$9,'ED OTC - SET UP'!$AK$85=Validation!$D$31,'ED OTC - SET UP'!$BJ$85=Validation!$F$36),\"NOT REQUIRED\",IF(AND('ED OTC - SET UP'!N85=Validation!$D$9,'ED OTC - SET UP'!$AK$85=Validation!$D$32,'ED OTC - SET UP'!$BJ$85=Validation!$F$36),\"NOT REQUIRED\",IF(AND('ED OTC - SET UP'!N85=Validation!$D$9,'ED OTC - SET UP'!$AK$85=Validation!$D$33,'ED OTC - SET UP'!$BJ$85=Validation!$F$36),\"NOT REQUIRED\",IF(AND('ED OTC - SET UP'!N85=Validation!$D$9,'ED OTC - SET UP'!$AK$85=Validation!$D$34,'ED OTC - SET UP'!$BJ$85=Validation!$F$36),\"NOT REQUIRED\",IF(AND('ED OTC - SET UP'!N85=Validation!$D$9,'ED OTC - SET UP'!$AK$85=Validation!$D$36,'ED OTC - SET UP'!$BJ$85=Validation!$F$36),\"NOT REQUIRED\",IF(AND('ED OTC - SET UP'!N85=Validation!$D$9,'ED OTC - SET UP'!$AK$85=Validation!$D$32,'ED OTC - SET UP'!$BJ$85=Validation!$F$38),\"NOT REQUIRED\",IF(AND('ED OTC - SET UP'!N85=Validation!$D$10,'ED OTC - SET UP'!$AK$85=Validation!$D$31,'ED OTC - SET UP'!$BJ$85=Validation!$F$37),\"REQUIRED\",IF(AND('ED OTC - SET UP'!N85=Validation!$D$10,'ED OTC - SET UP'!$AK$85=Validation!$D$32,'ED OTC - SET UP'!$BJ$85=Validation!$F$36),\"REQUIRED\",IF(AND('ED OTC - SET UP'!N85=Validation!$D$10,'ED OTC - SET UP'!$AK$85=Validation!$D$32,'ED OTC - SET UP'!$BJ$85=Validation!$F$38),\"REQUIRED\",IF(AND('ED OTC - SET UP'!N85=Validation!$D$10,'ED OTC - SET UP'!$AK$85=Validation!$D$33,'ED OTC - SET UP'!$BJ$85=Validation!$F$37),\"REQUIRED\",IF(AND('ED OTC - SET UP'!N85=Validation!$D$10,'ED OTC - SET UP'!$AK$85=Validation!$D$34,'ED OTC - SET UP'!$BJ$85=Validation!$F$37),\"REQUIRED\",IF(AND('ED OTC - SET UP'!N85=Validation!$D$10,'ED OTC - SET UP'!$AK$85=Validation!$D$36,'ED OTC - SET UP'!$BJ$85=Validation!$F$37),\"REQUIRED\",IF(AND('ED OTC - SET UP'!N85=Validation!$D$11,'ED OTC - SET UP'!$AK$85=Validation!$D$31,'ED OTC - SET UP'!$BJ$85=Validation!$F$36),\"NOT REQUIRED\",IF(AND('ED OTC - SET UP'!N85=Validation!$D$11,'ED OTC - SET UP'!$AK$85=Validation!$D$32,'ED OTC - SET UP'!$BJ$85=Validation!$F$36),\"NOT REQUIRED\",IF(AND('ED OTC - SET UP'!N85=Validation!$D$11,'ED OTC - SET UP'!$AK$85=Validation!$D$32,'ED OTC - SET UP'!$BJ$85=Validation!$F$38),\"NOT REQUIRED\",IF(AND('ED OTC - SET UP'!N85=Validation!$D$11,'ED OTC - SET UP'!$AK$85=Validation!$D$34,'ED OTC - SET UP'!$BJ$85=Validation!$F$36),\"NOT REQUIRED\",IF(AND('ED OTC - SET UP'!N85=Validation!D10,'ED OTC - SET UP'!AK85=Validation!D35,'ED OTC - SET UP'!BJ85=Validation!F37),\"REQUIRED\",\"NOT REQUIRED\")))))))))))))))))","v":"NOT REQUIRED"},null,null,null,null,null,null,null,null,null,null,null,null,null,null,null,null,null,null,null,null,null,null,null,null,null,null,null,null,null,null,null,null,null,null,null,null,null,null,null,null,null,null,null,null,null,null,null,null,null,null,null,null,null,null,null,null,null,null,null,null,null,null,null,null,null,null,null,null,null,null,null,null,null,null,null,null,{"$f":"IF(AND('ED OTC - SET UP'!N85=Validation!D9,'ED OTC - SET UP'!AK85=Validation!D31,'ED OTC - SET UP'!BJ85=Validation!F36),\"REQUIRED\",\"NOT REQUIRED\")","v":"NOT REQUIRED"}]
[null,"Employee #",null,"Category of Job",null,null,null,null,null,null,null,"Created / Retained",null,null,null,null,null,"Full Time or Part Time",null,null,null,null,null,"If PT, hrs per week",null,null,null,"Annual Gross Income",null,null,null,null,null,"Unemployed prior to employment",null,null,null,null,"Healthcare provided",null,null,"% of Area Median Income",null,null,null,null,null,null,null,null,"Hispanic",null,null,"Race",null,null,null,null,null,null,null,null,null,null,"Veteran",null,null,"Is head of Household Female",null,null,null,null,"Family Size",null,null,"Is employee disable",null,null,"New or Existing Business",null,null,null,null,"Expanding or Relocating",null,null,null,"Number of Employees",null,"Goods or Services"]
[1,null,null,null,null,null,null,null,null,null,null,null,null,null,null,null,null,null,null,null,null,null,null,null,null,null,null,null,null,null,null,null,null,null,null,null,null,null,null,null,null,null,null,null,null,null,null,null,null,null,null,null,null,null,null,null,null,null,null,null,null,null,null,null,null,null,null,null,null,null,null,null,null,null,null,null,null,null,"New",null,null,null,null,"Expanding",null,null,null,100,null,"Yes"]
[2]
[3]
[4]
[5]
[6]
[7]
[8]
[9]
[10]
[11]
[12]
[13]
[14]
[15,null,null,null,null,null,null,null,null,null,null,null,null,null,null,null,null,null,null,null,null,null,null,null,null,null,null,null,null,null,null,null,null,null,null,null,null,null,null,null,null,null,null,null,null,null,null,null,null,null,null,null,null,null,null,null,null,null,null,null,null,null,null,null,null,null,null,null,null,null,null,null,null,null,null,null,null,null,null,null,null,null,null,null,null,null,null,null,null,null,null,null,"Page 2"]
[16]
[17]
[18]
[19]
[20]
[21]
[22]
[23,null,null,null,null,null,null,null,null,null,null,null,null,null,null,null,null,null,null,null,null,null,null,null,null,null,null,null,null,null,null,null,null,null,null,null,null,null,null,null,null,null,null,null,null,null,null,null,null,null,null,null,null,null,null,null,null,null,null,null,null,null,null,null,null,null,null,null,null,null,null,null," "]
[24]
[25]
[26]
[27]
[28]
[29]
[30]
[31]
[32]
[33]
[34,null,null,null,null,null,null,null,null,null,null,null,null,null,null,null,null,null,null,null,null,null,null,null,null,null,null,null,null,null,null,null,null,null,null,null,null,null,null,null,null,null,null,null,null,null,null,null,null,null,null,null,null,null,null,null,null,null,null,null,null,null,null,null,null,null,null,null,null,null,null,null,null,null,null,null,null,null,null,null,null,null,null,null,null,null,null,null,null,null,null,null,"Page 3"]
[35]
[36]
[37]
[38]
[39]
[40]
[41]
[42]
[43]
[44]
[45]
[46]
[47]
[48]
[49]
[50]
[51]
[52]
[53,null,null,null,null,null,null,null,null,null,null,null,null,null,null,null,null,null,null,null,null,null,null,null,null,null,null,null,null,null,null,null,null,null,null,null,null,null,null,null,null,null,null,null,null,null,null,null,null,null,null,null,null,null,null,null,null,null,null,null,null,null,null,null,null,null,null,null,null,null,null,null,null,null,null,null,null,null,null,null,null,null,null,null,null,null,null,null,null,null,null,null,"Page 4"]
[54]
[55]
[56]
[57]
[58]
[59]
[60]
[61]
[62]
[63]
[64]
[65]
[66]
[67]
[68]
[69]
[70]
[71]
[72,null,null,null,null,null,null,null,null,null,null,null,null,null,null,null,null,null,null,null,null,null,null,null,null,null,null,null,null,null,null,null,null,null,null,null,null,null,null,null,null,null,null,null,null,null,null,null,null,null,null,null,null,null,null,null,null,null,null,null,null,null,null,null,null,null,null,null,null,null,null,null,null,null,null,null,null,null,null,null,null,null,null,null,null,null,null,null,null,null,null,null,"Page 5"]
[73]
[74]
[75]
[76]
[77]
[78]
[79]
[80]
[81]
[82]
[83]
[84]
[85]
[86]
[87]
[88]
[89]
[90]
[91,null,null,null,null,null,null,null,null,null,null,null,null,null,null,null,null,null,null,null,null,null,null,null,null,null,null,null,null,null,null,null,null,null,null,null,null,null,null,null,null,null,null,null,null,null,null,null,null,null,null,null,null,null,null,null,null,null,null,null,null,null,null,null,null,null,null,null,null,null,null,null,null,null,null,null,null,null,null,null,null,null,null,null,null,null,null,null,null,null,null,null,"Page 6"]
[92]
[93]
[94]
[95]
[96]
[97]
[98]
[99]
[100]
[101]
[102]
[103]
[104]
[105]
[106]
[107]
[108]
[109]
[110,null,null,null,null,null,null,null,null,null,null,null,null,null,null,null,null,null,null,null,null,null,null,null,null,null,null,null,null,null,null,null,null,null,null,null,null,null,null,null,null,null,null,null,null,null,null,null,null,null,null,null,null,null,null,null,null,null,null,null,null,null,null,null,null,null,null,null,null,null,null,null,null,null,null,null,null,null,null,null,null,null,null,null,null,null,null,null,null,null,null,null,"Page 7"]
[111]
[112]
[113]
[114]
[115]
[116]
[117]
[118]
[119]
[120]
[121]
[122]
[123]
[124]
[125]
[126]
[127]
[128]
[129,null,null,null,null,null,null,null,null,null,null,null,null,null,null,null,null,null,null,null,null,null,null,null,null,null,null,null,null,null,null,null,null,null,null,null,null,null,null,null,null,null,null,null,null,null,null,null,null,null,null,null,null,null,null,null,null,null,null,null,null,null,null,null,null,null,null,null,null,null,null,null,null,null,null,null,null,null,null,null,null,null,null,null,null,null,null,null,null,null,null,null,"Page 8"]
[130]
[131]
[132]
[133]
[134]
[135]
[136]
[137]
[138]
[139]
[140]
[141]
[142]
[143]
[144]
[145]
[146]
[147]
[148,null,null,null,null,null,null,null,null,null,null,null,null,null,null,null,null,null,null,null,null,null,null,null,null,null,null,null,null,null,null,null,null,null,null,null,null,null,null,null,null,null,null,null,null,null,null,null,null,null,null,null,null,null,null,null,null,null,null,null,null,null,null,null,null,null,null,null,null,null,null,null,null,null,null,null,null,null,null,null,null,null,null,null,null,null,null,null,null,null,null,null,"Page 9"]
[149]
[150]
[151]
[152]
[153]
[154]
[155]
[156]
[157]
[158]
[159]
[160]
[161]
[162]
[163]
[164]
[165]
[166]
[167,null,null,null,null,null,null,null,null,null,null,null,null,null,null,null,null,null,null,null,null,null,null,null,null,null,null,null,null,null,null,null,null,null,null,null,null,null,null,null,null,null,null,null,null,null,null,null,null,null,null,null,null,null,null,null,null,null,null,null,null,null,null,null,null,null,null,null,null,null,null,null,null,null,null,null,null,null,null,null,null,null,null,null,null,null,null,null,null,null,null,null,"Page 10"]
[168]
[169]
[170]
[171]
[172]
[173]
[174]
[175]
[176]
[177]
[178]
[179]
[180]
[181]
[182]
[183]
[184]
[185]
[186,null,null,null,null,null,null,null,null,null,null,null,null,null,null,null,null,null,null,null,null,null,null,null,null,null,null,null,null,null,null,null,null,null,null,null,null,null,null,null,null,null,null,null,null,null,null,null,null,null,null,null,null,null,null,null,null,null,null,null,null,null,null,null,null,null,null,null,null,null,null,null,null,null,null,null,null,null,null,null,null,null,null,null,null,null,null,null,null,null,null,null,"Page 11"]
[187]
[188]
[189]
[190]
[191]
[192]
[193]
[194]
[195]
[196]
[197]
[198]
[199]
[200]
[201]
[202]
[203]
[204]
[205,null,null,null,null,null,null,null,null,null,null,null,null,null,null,null,null,null,null,null,null,null,null,null,null,null,null,null,null,null,null,null,null,null,null,null,null,null,null,null,null,null,null,null,null,null,null,null,null,null,null,null,null,null,null,null,null,null,null,null,null,null,null,null,null,null,null,null,null,null,null,null,null,null,null,null,null,null,null,null,null,null,null,null,null,null,null,null,null,null,null,null,"Page 12"]
[206]
[207]
[208]
[209]
[210]
[211]
[212]
[213]
[214]
[215]
[216]
[217]
[218]
[219]
[220]
[221]
[222]
[223]
[224,null,null,null,null,null,null,null,null,null,null,null,null,null,null,null,null,null,null,null,null,null,null,null,null,null,null,null,null,null,null,null,null,null,null,null,null,null,null,null,null,null,null,null,null,null,null,null,null,null,null,null,null,null,null,null,null,null,null,null,null,null,null,null,null,null,null,null,null,null,null,null,null,null,null,null,null,null,null,null,null,null,null,null,null,null,null,null,null,null,null,null,"Page 13"]
[225]
[226]
[227]
[228]
[229]
[230]
[231]
[232]
[233]
[234]
[235]
[236]
[237]
[238]
[239]
[240]
[241]
[242]
[243,null,null,null,null,null,null,null,null,null,null,null,null,null,null,null,null,null,null,null,null,null,null,null,null,null,null,null,null,null,null,null,null,null,null,null,null,null,null,null,null,null,null,null,null,null,null,null,null,null,null,null,null,null,null,null,null,null,null,null,null,null,null,null,null,null,null,null,null,null,null,null,null,null,null,null,null,null,null,null,null,null,null,null,null,null,null,null,null,null,null,null,"Page 14"]
[244]
[245]
[246]
[247]
[248]
[249]
[250]
[251]
[252]
[253]
[254]
[255]
[256]
[257]
[258]
[259]
[260]
[261]
[262,null,null,null,null,null,null,null,null,null,null,null,null,null,null,null,null,null,null,null,null,null,null,null,null,null,null,null,null,null,null,null,null,null,null,null,null,null,null,null,null,null,null,null,null,null,null,null,null,null,null,null,null,null,null,null,null,null,null,null,null,null,null,null,null,null,null,null,null,null,null,null,null,null,null,null,null,null,null,null,null,null,null,null,null,null,null,null,null,null,null,null,"Page 15"]
[263]
[264]
[265]
[266]
[267]
[268]
[269]
[270]
[271]
[272]
[273]
[274]
[275]
[276]
[277]
[278]
[279]
[280]
[281,null,null,null,null,null,null,null,null,null,null,null,null,null,null,null,null,null,null,null,null,null,null,null,null,null,null,null,null,null,null,null,null,null,null,null,null,null,null,null,null,null,null,null,null,null,null,null,null,null,null,null,null,null,null,null,null,null,null,null,null,null,null,null,null,null,null,null,null,null,null,null,null,null,null,null,null,null,null,null,null,null,null,null,null,null,null,null,null,null,null,null,"Page 16"]
[282]
[283]
[284]
[285]
[286]
[287]
[288]
[289]
[290]
[291]
[292]
[293]
[294]
[295]
[296]
[297]
[298]
[299]
[300,null,null,null,null,null,null,null,null,null,null,null,null,null,null,null,null,null,null,null,null,null,null,null,null,null,null,null,null,null,null,null,null,null,null,null,null,null,null,null,null,null,null,null,null,null,null,null,null,null,null,null,null,null,null,null,null,null,null,null,null,null,null,null,null,null,null,null,null,null,null,null,null,null,null,null,null,null,null,null,null,null,null,null,null,null,null,null,null,null,null,null,"Page 17"]
[301]
[302]
[303]
[304]
[305]
[306]
[307]
[308]
[309]
[310]
[311]
[312]
[313]
[314]
[315]
[316]
[317]
[318]
[319,null,null,null,null,null,null,null,null,null,null,null,null,null,null,null,null,null,null,null,null,null,null,null,null,null,null,null,null,null,null,null,null,null,null,null,null,null,null,null,null,null,null,null,null,null,null,null,null,null,null,null,null,null,null,null,null,null,null,null,null,null,null,null,null,null,null,null,null,null,null,null,null,null,null,null,null,null,null,null,null,null,null,null,null,null,null,null,null,null,null,null,"Page 18"]
[320]
[321]
[322]
[323]
[324]
[325]
[326]
[327]
[328]
[329]
[330]
[331]
[332]
[333]
[334]
[335]
[336]
[337]
[338,null,null,null,null,null,null,null,null,null,null,null,null,null,null,null,null,null,null,null,null,null,null,null,null,null,null,null,null,null,null,null,null,null,null,null,null,null,null,null,null,null,null,null,null,null,null,null,null,null,null,null,null,null,null,null,null,null,null,null,null,null,null,null,null,null,null,null,null,null,null,null,null,null,null,null,null,null,null,null,null,null,null,null,null,null,null,null,null,null,null,null,"Page 19"]
[339]
[340]
[341]
[342]
[343]
[344]
[345]
[346]
[347]
[348]
[349]
[350]
[351]
[352]
[353]
[354]
[355]
[356]
[357,null,null,null,null,null,null,null,null,null,null,null,null,null,null,null,null,null,null,null,null,null,null,null,null,null,null,null,null,null,null,null,null,null,null,null,null,null,null,null,null,null,null,null,null,null,null,null,null,null,null,null,null,null,null,null,null,null,null,null,null,null,null,null,null,null,null,null,null,null,null,null,null,null,null,null,null,null,null,null,null,null,null,null,null,null,null,null,null,null,null,null,"Page 20"]
[358]
[359]
[360]
[361]
[362]
[363]
[364]
[365]
[366]
[367]
[368]
[369]
[370]
[371]
[372]
[373]
[374]
[375]
[376,null,null,null,null,null,null,null,null,null,null,null,null,null,null,null,null,null,null,null,null,null,null,null,null,null,null,null,null,null,null,null,null,null,null,null,null,null,null,null,null,null,null,null,null,null,null,null,null,null,null,null,null,null,null,null,null,null,null,null,null,null,null,null,null,null,null,null,null,null,null,null,null,null,null,null,null,null,null,null,null,null,null,null,null,null,null,null,null,null,null,null,"Page 21"]
[377]
[378]
[379]
[380]
[381]
[382]
[383]
[384]
[385]
[386]
[387]
[388]
[389]
[390]
[391]
[392]
[393]
[394]
[395,null,null,null,null,null,null,null,null,null,null,null,null,null,null,null,null,null,null,null,null,null,null,null,null,null,null,null,null,null,null,null,null,null,null,null,null,null,null,null,null,null,null,null,null,null,null,null,null,null,null,null,null,null,null,null,null,null,null,null,null,null,null,null,null,null,null,null,null,null,null,null,null,null,null,null,null,null,null,null,null,null,null,null,null,null,null,null,null,null,null,null,"Page 22"]
[396]
[397]
[398]
[399]
[400]
[401]
[402]
[403]
[404]
[405]
[406]
[407]
[408]
[409]
[410]
[411]
[412]
[413]
[414,null,null,null,null,null,null,null,null,null,null,null,null,null,null,null,null,null,null,null,null,null,null,null,null,null,null,null,null,null,null,null,null,null,null,null,null,null,null,null,null,null,null,null,null,null,null,null,null,null,null,null,null,null,null,null,null,null,null,null,null,null,null,null,null,null,null,null,null,null,null,null,null,null,null,null,null,null,null,null,null,null,null,null,null,null,null,null,null,null,null,null,"Page 23"]
[415]
[416]
[417]
[418]
[419]
[420]
[421]
[422]
[423]
[424]
[425]
[426]
[427]
[428]
[429]
[430]
[431]
[432]
[433,null,null,null,null,null,null,null,null,null,null,null,null,null,null,null,null,null,null,null,null,null,null,null,null,null,null,null,null,null,null,null,null,null,null,null,null,null,null,null,null,null,null,null,null,null,null,null,null,null,null,null,null,null,null,null,null,null,null,null,null,null,null,null,null,null,null,null,null,null,null,null,null,null,null,null,null,null,null,null,null,null,null,null,null,null,null,null,null,null,null,null,"Page 24"]
[434]
[435]
[436]
[437]
[438]
[439]
[440]
[441]
[442]
[443]
[444]
[445]
[446]
[447]
[448]
[449]
[450]
[451]
[452,null,null,null,null,null,null,null,null,null,null,null,null,null,null,null,null,null,null,null,null,null,null,null,null,null,null,null,null,null,null,null,null,null,null,null,null,null,null,null,null,null,null,null,null,null,null,null,null,null,null,null,null,null,null,null,null,null,null,null,null,null,null,null,null,null,null,null,null,null,null,null,null,null,null,null,null,null,null,null,null,null,null,null,null,null,null,null,null,null,null,null,"Page 25"]
[453]
[454]
[455]
[456]
[457]
[458]
[459]
[460]
[461]
[462]
[463]
[464]
[465]
[466]
[467]
[468]
[469]
[470]
[471,null,null,null,null,null,null,null,null,null,null,null,null,null,null,null,null,null,null,null,null,null,null,null,null,null,null,null,null,null,null,null,null,null,null,null,null,null,null,null,null,null,null,null,null,null,null,null,null,null,null,null,null,null,null,null,null,null,null,null,null,null,null,null,null,null,null,null,null,null,null,null,null,null,null,null,null,null,null,null,null,null,null,null,null,null,null,null,null,null,null,null,"Page 26"]
[472]
[473]
[474]
[475]
[476]
[477]
[478]
[479]
[480]
[481]
[482]
[483]
[484]
[485]
[486]
[487]
[488]
[489]
[490,null,null,null,null,null,null,null,null,null,null,null,null,null,null,null,null,null,null,null,null,null,null,null,null,null,null,null,null,null,null,null,null,null,null,null,null,null,null,null,null,null,null,null,null,null,null,null,null,null,null,null,null,null,null,null,null,null,null,null,null,null,null,null,null,null,null,null,null,null,null,null,null,null,null,null,null,null,null,null,null,null,null,null,null,null,null,null,null,null,null,null,"Page 27"]
[491]
[492]
[493]
[494]
[495]
[496]
[497]
[498]
[499]
[500]
[501]
[502]
[503]
[504]
[505]
[506]
[507]
[508]
[509,null,null,null,null,null,null,null,null,null,null,null,null,null,null,null,null,null,null,null,null,null,null,null,null,null,null,null,null,null,null,null,null,null,null,null,null,null,null,null,null,null,null,null,null,null,null,null,null,null,null,null,null,null,null,null,null,null,null,null,null,null,null,null,null,null,null,null,null,null,null,null,null,null,null,null,null,null,null,null,null,null,null,null,null,null,null,null,null,null,null,null,"Page 28"]
[510]
[511]
[512]
[513]
[514]
[515]
[516]
[517]
[518]
[519]
[520]
[521]
[522]
[523]
[524]
[525]
[526]
[527]
[528,null,null,null,null,null,null,null,null,null,null,null,null,null,null,null,null,null,null,null,null,null,null,null,null,null,null,null,null,null,null,null,null,null,null,null,null,null,null,null,null,null,null,null,null,null,null,null,null,null,null,null,null,null,null,null,null,null,null,null,null,null,null,null,null,null,null,null,null,null,null,null,null,null,null,null,null,null,null,null,null,null,null,null,null,null,null,null,null,null,null,null,"Page 29"]
[529]
[530]
[531]
[532]
[533]
[534]
[535]
[536]
[537]
[538]
[539]
[540]
[541]
[542]
[543]
[544]
[545]
[546]
[547,null,null,null,null,null,null,null,null,null,null,null,null,null,null,null,null,null,null,null,null,null,null,null,null,null,null,null,null,null,null,null,null,null,null,null,null,null,null,null,null,null,null,null,null,null,null,null,null,null,null,null,null,null,null,null,null,null,null,null,null,null,null,null,null,null,null,null,null,null,null,null,null,null,null,null,null,null,null,null,null,null,null,null,null,null,null,null,null,null,null,null,"Page 30"]
[548]
[549]
[550]
[551]
[552]
[553]
[554]
[555]
[556]
[557]
[558]
[559]
[560]
[561]
[562]
[563]
[564]
[565]
[566,null,null,null,null,null,null,null,null,null,null,null,null,null,null,null,null,null,null,null,null,null,null,null,null,null,null,null,null,null,null,null,null,null,null,null,null,null,null,null,null,null,null,null,null,null,null,null,null,null,null,null,null,null,null,null,null,null,null,null,null,null,null,null,null,null,null,null,null,null,null,null,null,null,null,null,null,null,null,null,null,null,null,null,null,null,null,null,null,null,null,null,"Page 31"]
[567]
[568]
[569]
[570]
[571]
[572]
[573]
[574]
[575]
[576]
[577]
[578]
[579]
[580]
[581]
[582]
[583]
[584]
[585,null,null,null,null,null,null,null,null,null,null,null,null,null,null,null,null,null,null,null,null,null,null,null,null,null,null,null,null,null,null,null,null,null,null,null,null,null,null,null,null,null,null,null,null,null,null,null,null,null,null,null,null,null,null,null,null,null,null,null,null,null,null,null,null,null,null,null,null,null,null,null,null,null,null,null,null,null,null,null,null,null,null,null,null,null,null,null,null,null,null,null,"Page 32"]
[586]
[587]
[588]
[589]
[590]
[591]
[592]
[593]
[594]
[595]
[596]
[597]
[598]
[599]
[600]
[601]
[602]
[603]
[604,null,null,null,null,null,null,null,null,null,null,null,null,null,null,null,null,null,null,null,null,null,null,null,null,null,null,null,null,null,null,null,null,null,null,null,null,null,null,null,null,null,null,null,null,null,null,null,null,null,null,null,null,null,null,null,null,null,null,null,null,null,null,null,null,null,null,null,null,null,null,null,null,null,null,null,null,null,null,null,null,null,null,null,null,null,null,null,null,null,null,null,"Page 33"]
[605]
[606]
[607]
[608]
[609]
[610]
[611]
[612]
[613]
[614]
[615]
[616]
[617]
[618]
[619]
[620]
[621]
[622]
[623,null,null,null,null,null,null,null,null,null,null,null,null,null,null,null,null,null,null,null,null,null,null,null,null,null,null,null,null,null,null,null,null,null,null,null,null,null,null,null,null,null,null,null,null,null,null,null,null,null,null,null,null,null,null,null,null,null,null,null,null,null,null,null,null,null,null,null,null,null,null,null,null,null,null,null,null,null,null,null,null,null,null,null,null,null,null,null,null,null,null,null,"Page 34"]
[624]
[625]
[626]
[627]
[628]
[629]
[630]
[631]
[632]
[633]
[634]
[635]
[636]
[637]
[638]
[639]
[640]
[641]
[642,null,null,null,null,null,null,null,null,null,null,null,null,null,null,null,null,null,null,null,null,null,null,null,null,null,null,null,null,null,null,null,null,null,null,null,null,null,null,null,null,null,null,null,null,null,null,null,null,null,null,null,null,null,null,null,null,null,null,null,null,null,null,null,null,null,null,null,null,null,null,null,null,null,null,null,null,null,null,null,null,null,null,null,null,null,null,null,null,null,null,null,"Page 35"]
[643]
[644]
[645]
[646]
[647]
[648]
[649]
[650]
[651]
[652]
[653]
[654]
[655]
[656]
[657]
[658]
[659]
[660]
[661,null,null,null,null,null,null,null,null,null,null,null,null,null,null,null,null,null,null,null,null,null,null,null,null,null,null,null,null,null,null,null,null,null,null,null,null,null,null,null,null,null,null,null,null,null,null,null,null,null,null,null,null,null,null,null,null,null,null,null,null,null,null,null,null,null,null,null,null,null,null,null,null,null,null,null,null,null,null,null,null,null,null,null,null,null,null,null,null,null,null,null,"Page 36"]
[662]
[663]
[664]
[665]
[666]
[667]
[668]
[669]
[670]
[671]
[672]
[673]
[674]
[675]
[676]
[677]
[678]
[679]
[680,null,null,null,null,null,null,null,null,null,null,null,null,null,null,null,null,null,null,null,null,null,null,null,null,null,null,null,null,null,null,null,null,null,null,null,null,null,null,null,null,null,null,null,null,null,null,null,null,null,null,null,null,null,null,null,null,null,null,null,null,null,null,null,null,null,null,null,null,null,null,null,null,null,null,null,null,null,null,null,null,null,null,null,null,null,null,null,null,null,null,null,"Page 37"]
[681]
[682]
[683]
[684]
[685]
[686]
[687]
[688]
[689]
[690]
[691]
[692]
[693]
[694]
[695]
[696]
[697]
[698]
[699,null,null,null,null,null,null,null,null,null,null,null,null,null,null,null,null,null,null,null,null,null,null,null,null,null,null,null,null,null,null,null,null,null,null,null,null,null,null,null,null,null,null,null,null,null,null,null,null,null,null,null,null,null,null,null,null,null,null,null,null,null,null,null,null,null,null,null,null,null,null,null,null,null,null,null,null,null,null,null,null,null,null,null,null,null,null,null,null,null,null,null,"Page 38"]
[700]
[701]
[702]
[703]
[704]
[705]
[706]
[707]
[708]
[709]
[710]
[711]
[712]
[713]
[714]
[715]
[716]
[717]
[718,null,null,null,null,null,null,null,null,null,null,null,null,null,null,null,null,null,null,null,null,null,null,null,null,null,null,null,null,null,null,null,null,null,null,null,null,null,null,null,null,null,null,null,null,null,null,null,null,null,null,null,null,null,null,null,null,null,null,null,null,null,null,null,null,null,null,null,null,null,null,null,null,null,null,null,null,null,null,null,null,null,null,null,null,null,null,null,null,null,null,null,"Page 39"]
[719]
[720]
[721]
[722]
[723]
[724]
[725]
[726]
[727]
[728]
[729]
[730]
[731]
[732]
[733]
[734]
[735]
[736]
[737,null,null,null,null,null,null,null,null,null,null,null,null,null,null,null,null,null,null,null,null,null,null,null,null,null,null,null,null,null,null,null,null,null,null,null,null,null,null,null,null,null,null,null,null,null,null,null,null,null,null,null,null,null,null,null,null,null,null,null,null,null,null,null,null,null,null,null,null,null,null,null,null,null,null,null,null,null,null,null,null,null,null,null,null,null,null,null,null,null,null,null,"Page 40"]
[738]
[739]
[740]
[741]
[742]
[743]
[744]
[745]
[746]
[747]
[748]
[749]
[750]
[751]
[752]
[753]
[754]
[755]
[756,null,null,null,null,null,null,null,null,null,null,null,null,null,null,null,null,null,null,null,null,null,null,null,null,null,null,null,null,null,null,null,null,null,null,null,null,null,null,null,null,null,null,null,null,null,null,null,null,null,null,null,null,null,null,null,null,null,null,null,null,null,null,null,null,null,null,null,null,null,null,null,null,null,null,null,null,null,null,null,null,null,null,null,null,null,null,null,null,null,null,null,"Page 41"]
[757]
[758]
[759]
[760]
[761]
[762]
[763]
[764]
[765]
[766]
[767]
[768]
[769]
[770]
[771]
[772]
[773]
[774]
[775,null,null,null,null,null,null,null,null,null,null,null,null,null,null,null,null,null,null,null,null,null,null,null,null,null,null,null,null,null,null,null,null,null,null,null,null,null,null,null,null,null,null,null,null,null,null,null,null,null,null,null,null,null,null,null,null,null,null,null,null,null,null,null,null,null,null,null,null,null,null,null,null,null,null,null,null,null,null,null,null,null,null,null,null,null,null,null,null,null,null,null,"Page 42"]
[776]
[777]
[778]
[779]
[780]
[781]
[782]
[783]
[784]
[785]
[786]
[787]
[788]
[789]
[790]
[791]
[792]
[793]
[794,null,null,null,null,null,null,null,null,null,null,null,null,null,null,null,null,null,null,null,null,null,null,null,null,null,null,null,null,null,null,null,null,null,null,null,null,null,null,null,null,null,null,null,null,null,null,null,null,null,null,null,null,null,null,null,null,null,null,null,null,null,null,null,null,null,null,null,null,null,null,null,null,null,null,null,null,null,null,null,null,null,null,null,null,null,null,null,null,null,null,null,"Page 43"]
[795]
[796]
[797]
[798]
[799]
[800]
[801]
[802]
[803]
[804]
[805]
[806]
[807]
[808]
[809]
[810]
[811]
[812]
[813,null,null,null,null,null,null,null,null,null,null,null,null,null,null,null,null,null,null,null,null,null,null,null,null,null,null,null,null,null,null,null,null,null,null,null,null,null,null,null,null,null,null,null,null,null,null,null,null,null,null,null,null,null,null,null,null,null,null,null,null,null,null,null,null,null,null,null,null,null,null,null,null,null,null,null,null,null,null,null,null,null,null,null,null,null,null,null,null,null,null,null,"Page 44"]
[814]
[815]
[816]
[817]
[818]
[819]
[820]
[821]
[822]
[823]
[824]
[825]
[826]
[827]
[828]
[829]
[830]
[831]
[832,null,null,null,null,null,null,null,null,null,null,null,null,null,null,null,null,null,null,null,null,null,null,null,null,null,null,null,null,null,null,null,null,null,null,null,null,null,null,null,null,null,null,null,null,null,null,null,null,null,null,null,null,null,null,null,null,null,null,null,null,null,null,null,null,null,null,null,null,null,null,null,null,null,null,null,null,null,null,null,null,null,null,null,null,null,null,null,null,null,null,null,"Page 45"]
[833]
[834]
[835]
[836]
[837]
[838]
[839]
[840]
[841]
[842]
[843]
[844]
[845]
[846]
[847]
[848]
[849]
[850]
[851,null,null,null,null,null,null,null,null,null,null,null,null,null,null,null,null,null,null,null,null,null,null,null,null,null,null,null,null,null,null,null,null,null,null,null,null,null,null,null,null,null,null,null,null,null,null,null,null,null,null,null,null,null,null,null,null,null,null,null,null,null,null,null,null,null,null,null,null,null,null,null,null,null,null,null,null,null,null,null,null,null,null,null,null,null,null,null,null,null,null,null,"Page 46"]
[852]
[853]
[854]
[855]
[856]
[857]
[858]
[859]
[860]
[861]
[862]
[863]
[864]
[865]
[866]
[867]
[868]
[869]
[870,null,null,null,null,null,null,null,null,null,null,null,null,null,null,null,null,null,null,null,null,null,null,null,null,null,null,null,null,null,null,null,null,null,null,null,null,null,null,null,null,null,null,null,null,null,null,null,null,null,null,null,null,null,null,null,null,null,null,null,null,null,null,null,null,null,null,null,null,null,null,null,null,null,null,null,null,null,null,null,null,null,null,null,null,null,null,null,null,null,null,null,"Page 47"]
[871]
[872]
[873]
[874]
[875]
[876]
[877]
[878]
[879]
[880]
[881]
[882]
[883]
[884]
[885]
[886]
[887]
[888]
[889,null,null,null,null,null,null,null,null,null,null,null,null,null,null,null,null,null,null,null,null,null,null,null,null,null,null,null,null,null,null,null,null,null,null,null,null,null,null,null,null,null,null,null,null,null,null,null,null,null,null,null,null,null,null,null,null,null,null,null,null,null,null,null,null,null,null,null,null,null,null,null,null,null,null,null,null,null,null,null,null,null,null,null,null,null,null,null,null,null,null,null,"Page 48"]
[890]
[891]
[892]
[893]
[894]
[895]
[896]
[897]
[898]
[899]
[900]
[901]
[902]
[903]
[904]
[905]
[906]
[907]
[908,null,null,null,null,null,null,null,null,null,null,null,null,null,null,null,null,null,null,null,null,null,null,null,null,null,null,null,null,null,null,null,null,null,null,null,null,null,null,null,null,null,null,null,null,null,null,null,null,null,null,null,null,null,null,null,null,null,null,null,null,null,null,null,null,null,null,null,null,null,null,null,null,null,null,null,null,null,null,null,null,null,null,null,null,null,null,null,null,null,null,null,"Page 49"]
[909]
[910]
[911]
[912]
[913]
[914]
[915]
[916]
[917]
[918]
[919]
[920]
[921]
[922]
[923]
[924]
[925]
[926]
[927,null,null,null,null,null,null,null,null,null,null,null,null,null,null,null,null,null,null,null,null,null,null,null,null,null,null,null,null,null,null,null,null,null,null,null,null,null,null,null,null,null,null,null,null,null,null,null,null,null,null,null,null,null,null,null,null,null,null,null,null,null,null,null,null,null,null,null,null,null,null,null,null,null,null,null,null,null,null,null,null,null,null,null,null,null,null,null,null,null,null,null,"Page 50"]
[928]
[929]
[930]
[931]
[932]
[933]
[934]
[935]
[936]
[937]
[938]
[939]
[940]
[941]
[942]
[943]
[944]
[945]
[946,null,null,null,null,null,null,null,null,null,null,null,null,null,null,null,null,null,null,null,null,null,null,null,null,null,null,null,null,null,null,null,null,null,null,null,null,null,null,null,null,null,null,null,null,null,null,null,null,null,null,null,null,null,null,null,null,null,null,null,null,null,null,null,null,null,null,null,null,null,null,null,null,null,null,null,null,null,null,null,null,null,null,null,null,null,null,null,null,null,null,null,"Page 51"]
[947]
[948]
[949]
[950]
[951]
[952]
[953]
[954]
[955]
[956]
[957]
[958]
[959]
[960]
[961]
[962]
[963]
[964]
[965,null,null,null,null,null,null,null,null,null,null,null,null,null,null,null,null,null,null,null,null,null,null,null,null,null,null,null,null,null,null,null,null,null,null,null,null,null,null,null,null,null,null,null,null,null,null,null,null,null,null,null,null,null,null,null,null,null,null,null,null,null,null,null,null,null,null,null,null,null,null,null,null,null,null,null,null,null,null,null,null,null,null,null,null,null,null,null,null,null,null,null,"Page 52"]
[966]
[967]
[968]
[969]
[970]
[971]
[972]
[973]
[974]
[975]
[976]
[977]
[978]
[979]
[980]
[981]
[982]
[983]
[984,null,null,null,null,null,null,null,null,null,null,null,null,null,null,null,null,null,null,null,null,null,null,null,null,null,null,null,null,null,null,null,null,null,null,null,null,null,null,null,null,null,null,null,null,null,null,null,null,null,null,null,null,null,null,null,null,null,null,null,null,null,null,null,null,null,null,null,null,null,null,null,null,null,null,null,null,null,null,null,null,null,null,null,null,null,null,null,null,null,null,null,"Page 53"]
[985]
[986]
[987]
[988]
[989]
[990]
[991]
[992]
[993]
[994]
[995]
[996]
[997]
[998]
[999]
[1000]
[]
[]
[null,"END OF DOCUMENT"]

{"sheet":"Validation","index":3,"n_rows":152,"n_cols":8,"rows_kept":152,"cut":false,"hidden":true,"merged":[[156,1,156,2],[14,7,15,7],[152,1,152,2],[153,1,153,2],[154,1,154,2],[155,1,155,2]]}
["Select Option","Select Option","Select Option","Yes","Non-Profit Organization",null,"Match Leverage"]
["Original","Yes","New","No","Faith-Based Organization",null,"Select Option"]
["Revised","No","Existing",null,"Institution of Higher Education","L000-Local Other","F000-Federal Other"]
["Cancelled",null,null,null,null,"L110-Staff Time","F100-Federal HUD"]
[null,null,null,null,null,"L120-Local-in-Kind","F200-Federal SBA"]
["FY 14/15",null,"Select Option",null,null,"L130-Local Land","F300-Federal EDA"]
["FY 15/16",null,"Expanding","National Objective",null,"L200-Local Fees","F400-Federal USDA"]
["FY 16/17",null,"Relocating","Select Option",null,"L210-Local Fee Waivers","F500-Federal FEMA"]
["FY 17/18",null,null,"LMA - Low/mod area benefit",null,"L220-Local Audit","F600-Federal Housing Tax Credits"]
["FY 18/19",null,null,"LMJ - Low/mod job creation and retention",null,"L300-Local","L000-Local Other"]
["FY 19/20",null,null,"SBS - Slum/blight, spot basis",null,"L310-PTA Cash Match","L001-Local No Match Required"]
["FY 20/21",null,null,null,null,"L600-Local RDA","L110-Staff Time"]
["FY 21/22",null,null,null,null,"P000 Private Other","L120-Local-in-Kind"]
["FY 22/23",null,null,null,null,"P100-Private Equity","L130-Local Land Contribution"]
["FY 23/24",null,null,null,"14H Rehabilitation Administration","P110-Private Sweat Equity","L200-Local Fee Waiver","What's the difference?"]
["FY 24/25",null,null,null,null,"P120-Private-in-Kind","L210-Local Fee Waivers"]
[null,null,null,null,null,"P200-Private Fees","L220-Local Audit"]
[null,null,null,null,"Grant","P320-Private Financing","L300-Local Funds"]
[null,"Select Option",null,null,"Loan","P900-Private Volunteer Time","L310-PTA Cash Match General"]
[null,"Sole Proprietorship",null,null,"Grant and Loan","F000-State Other","L311-PTA Cash Match ED"]
[null,"Parthnership",null,"Business Type",null,"S200-State Tax Credits","L320-PTA Private Financing"]
[null,"Corporation",null,"Select Option","Select Option",null,"L330-Bonds"]
[null,"Non-Profit Organization",null,"None ","11 - White",null,"L400-Goods and Services Incl."]
[null,null,null,"New","12 - Black/African American ",null,"L500-Gas Tax"]
[null,null,null,"Existing","13 - Asian","-CDBG-","L600-Local RDA"]
[null,"Select Option",null,null,"14 - American Indian/ Alaskan Native ",null,"L601-Local RDA"]
[null,"Start Up",null,null,"15 - Native Hawaiian/ Other Pacific Islander",null,"L602-Waived Interest/ Fin'e Chg"]
[null,"Expansion or Retention",null,null,"16 - Am. Indian/Alaskan Native & White ",null,"P000 Private Other"]
[null,null,null,"Matrix","17 - Asian & White ",null,"P100-Private Equity","Delete \"Equity\"?"]
[null,null,null,"Select Option","18 - Black/African Am. & White",null,"P110-Private Sweat Equity"]
[null,null,"Select Option","14E - Rehab; Pub./Private-Owned Commercial/Industrial","19 - Am. Indian/Alaskan & Blk/African ",null,"P120-Private-in-Kind"]
[null,null,"P300-Private Funds","16B - Non-Residential Historic Preservation","20 - Other Multi-Racial ",null,"P130-Private-Equity in Land/ Improve"]
[null,null,"P130-Private-Equity in Land/ Improve","17B - C/I Infrastructure Development",null,null,"P200-Private Fees"]
[null,null,"P320-Private Financing","17C - C/I Building Acq., Construction, Rehabilitation","Income Level","Accomplishment Type","P210-Private Fee Waivers"]
[null,null,"P330-Private Loans","17D - Commercial/Industrial: Other Improvement","Select Option","Select Option","P220-Private Discounts"]
[null,null,"P340-Private Banks","18A - ED Assistance to For Profits","Extremely Low ( ≤ 30%)","08 - Businesses","P300-Private Funds"]
[null,null,"F200-Federal SBA",null,"Low (31-50%)","13 - Jobs","P310-Private Cash Match"]
[null,null,"F400-Federal USDA",null,"Moderate (51-80%)","09 - Organizations","P320-Private Financing"]
[null,null,"P350-Private EDC",null,"Non-Low/ Moderate (+80%)",null,"P330-Private Loans"]
[null,null,"F300-Federal EDA",null,null,null,"P340-Private Banks"]
[null,null,"F000-Federal Other",null,"Select Option",null,"P350-Private EDC"]
[null,null,"F500-Federal FEMA",null,"Housing constructed before 1978",null,"P400-Private Good and Services"]
[null,null,"S000-State Other",null,"*Exempt: Housing constructed in 1978/ later",null,"P500-Private Tax Credit Equity"]
[null,null,null,null,"Exempt: No paint disturbed",null,"P600-Private Foundation/ Nonprofit G","G?"]
[null,null,null,null,"Otherwise exempt",null,"P900-Private Volunteer Time"]
[null,"Select Option",null,null,null,null,"S000-State Other"]
[null,"Officials and Managers",null,null,"Select Option",null,"S100-State HCD"]
[null,"Professional",null,null,"Lead Safe Work Practices (24 CFR 35.930(b)) (Hard cost < or = to $5,000)",null,"S200-State Treasurer Tax Credits-MC"]
[null,"Technicians",null,null,"Interim Controls/ Standard Practices (24 CFR 35.930(c)) (Hard cost $5,000-$25,000)",null,"S300-State SWRCB"]
[null,"Sales",null,null,"Abatement (24 CFR 35.930(d)) (Hard cost > $25,000)",null,"S400-State CalHFA (CHFA)"]
[null,"Office and Clerical",null,null,"N/A",null,"S500-State CSD"]
[null,"Craft Workers (Skilled)"]
[null,"Operatives (Semi-Skilled)",null,"Select Option"]
[null,"Laborers (Unskilled)",null,"A 105 (a) (15) entity as defined under the HD Act",null,null,"Program Income"]
[null,"Service Workers",null,"A 501 (c) 3"]
[null,null,null,"Another unit of local government",null,null,"PINC-Local Program Income"]
[null,"Select Option",null,"Another public agency"]
[null,"Created",null,"Select Option",null,"Occupancy","Loan/ Grant"]
[null,"Retained",null,"Subrecipient",null,"Select Option"]
[null,null,null,"Admin Contractor/Program Operator",null,"Owner","CDBG (Grant)"]
[null,null,null,"Jurisdiction Staff",null,"Tenant","CDBG (Loan)"]
[null,"Select Option"]
[null,"Full Time"]
[null,"Part Time",null,"Program Income",null,"# of Bedrooms"]
[null,null,null,"Revolving Loan Fund",null,"Select Option"]
[null,null,null,null,null,1]
[null,null,null,null,null,2]
[null,null,null,null,null,3]
[null,null,null,"Loan Type",null,4,"General Admin."]
[null,null,null,"Select Option",null,"5 or More"]
[null,null,null,"Amortized",null,null,"(21A) General Administration"]
[null,null,null,"Deferred"]
[null,null,null,"Amortized / Forgivable",null,"Yes/ No","Yes/ No","Yes"]
[null,null,null,"Deferred / Forgivable",null,"Select Option"]
[null,null,null,null,null,"No","No","Yes"]
[null,null,"Select Option",null,null,"Yes","Yes*"]
[null,null,"New"]
[null,null,"Improved",null,null,"# Persons","No"]
[null,null,"No Longer Substandard",null,null,"Select Option","Yes**"]
[null,null,null,null,null,1]
[null,null,null,null,null,2,"Activity Delivery"]
[null,null,"Select Option",null,null,3]
[null,null,"Abused Children","Extremely Low Income",null,4,"Activity Delivery"]
[null,null,"Battered Spouses","Low Income",null,5]
[null,null,"Severely Disable Adults","Low Income",null,6,"Type of Household"]
[null,null,"Homeless Persons","Extremely Low Income",null,7,"Select Option"]
[null,null,"Persons With AIDS","Low Income",null,8,"Single/ Non-Elderly"]
[null,null,"Migrant Farm Workers","Low Income",null,"Vac","Elderly"]
[null,null,"Illiterate Adults","Low Income",null,null,"Related/ Single Parent"]
[null,null,"Elderly","If assistance is to acquire, construct, convert, and/or rehabilitate a senior center or to pay for providing center-based senior services, report the beneficiaries as moderate income.\nIf assistance is for other services (not center-based), report the elderly beneficiaries as low income.",null,null,"Other"]
[null,null,null,null,null,null,"Vacant"]
[null,null,null,null,"County Code",null,"Related/Two Parent"]
[null,"County Code",null,"Activity Matrix Code","Select Option",null,"Rental Assistance"]
[null,"Select Option",null,"Select Option","001 Alameda",null,"Select Option"]
[null,"001 Alameda",null,"18C - ED Micro-Enterprise Assistance","003 Alpine",null,"HOME TBRA"]
[null,"003 Alpine",null,null,"005 Amador",null,"Sect. 8"]
[null,"005 Amador",null,null,"007 Butte",null,"Other"]
[null,"007 Butte",null,null,"009 Calaveras",null,"None"]
[null,"009 Calaveras",null,null,"011 Colusa",null,"Vacant"]
[null,"011 Colusa",null,null,"013 Contra Costa",null,"Project Based"]
[null,"013 Contra Costa",null,null,"015 Del Norte"]
[null,"015 Del Norte",null,null,"017 El Dorado"]
[null,"017 El Dorado",null,null,"019 Fresno"]
[null,"019 Fresno",null,null,"021 Glenn"]
[null,"021 Glenn",null,null,"023 Humboldt"]
[null,"023 Humboldt",null,null,"025 Imperial"]
[null,"025 Imperial",null,null,"027 Inyo"]
[null,"027 Inyo",null,null,"029 Kern"]
[null,"029 Kern",null,null,"031 Kings"]
[null,"031 Kings",null,null,"033 Lake"]
[null,"033 Lake",null,null,"035 Lassen"]
[null,"035 Lassen",null,null,"037 Los Angeles"]
[null,"037 Los Angeles",null,null,"039 Madera"]
[null,"039 Madera",null,null,"041 Marin"]
[null,"041 Marin",null,null,"043 Mariposa"]
[null,"043 Mariposa",null,null,"045 Mendocino"]
[null,"045 Mendocino",null,null,"047 Merced"]
[null,"047 Merced",null,null,"049 Modoc"]
[null,"049 Modoc",null,null,"051 Mono"]
[null,"051 Mono",null,null,"053 Monterey"]
[null,"053 Monterey",null,null,"055 Napa"]
[null,"055 Napa",null,null,"057 Nevada"]
[null,"057 Nevada",null,null,"059 Orange"]
[null,"059 Orange",null,null,"061 Placer"]
[null,"061 Placer",null,null,"063 Plumas"]
[null,"063 Plumas",null,null,"065 Riverside"]
[null,"065 Riverside",null,null,"067 Sacramento"]
[null,"067 Sacramento",null,null,"069 San Benito"]
[null,"069 San Benito",null,null,"071 San Bernardino"]
[null,"071 San Bernardino",null,null,"073 San Diego"]
[null,"073 San Diego",null,null,"075 San Francisco"]
[null,"075 San Francisco",null,null,"077 San Joaquin"]
[null,"077 San Joaquin",null,null,"079 San Luis Obispo"]
[null,"079 San Luis Obispo",null,null,"081 San Mateo"]
[null,"081 San Mateo",null,null,"083 Santa Barbara"]
[null,"083 Santa Barbara",null,null,"085 Santa Clara"]
[null,"085 Santa Clara",null,null,"087 Santa Cruz"]
[null,"087 Santa Cruz",null,null,"089 Shasta"]
[null,"089 Shasta",null,null,"091 Sierra"]
[null,"091 Sierra",null,null,"093 Siskiyou"]
[null,"093 Siskiyou",null,null,"095 Solano"]
[null,"095 Solano",null,null,"097 Sonoma"]
[null,"097 Sonoma",null,null,"099 Stanislaus"]
[null,"099 Stanislaus",null,null,"101 Sutter"]
[null,"101 Sutter",null,null,"103 Tehama"]
[null,"103 Tehama",null,null,"105 Trinity"]
[null,"105 Trinity",null,null,"107 Tulare"]
[null,"107 Tulare",null,null,"109 Tuolumne"]
[null,"109 Tuolumne",null,null,"111 Ventura"]
[null,"111 Ventura",null,null,"113 Yolo"]
[null,"113 Yolo",null,null,"115 Yuba"]
[null,"115 Yuba"]

{"sheet":"Data Validation","index":4,"n_rows":12,"n_cols":9,"rows_kept":12,"cut":false,"hidden":true,"merged":[]}
[]
["Category1",null,null,null,null,null,null,null,"SELECT OPTION"]
["A 105 (a) (15) entity as defined under the Housing & Development Act",null,null,null,null,null,null,null,"White "]
["Another unit of local Government",null,null,null,null,null,null,null,"Black/African American "]
["Another public Agency",null,null,null,null,null,null,null,"Asian "]
[null,null,null,null,null,null,null,null,"American Indian/Alaskan Native "]
[null,null,null,null,null,null,null,null,"Native Hawaiian/Other Pacific Isl. "]
["SELECT OPTION",null,null,null,null,null,null,null,"Am. Indian/Alaskan Native & White "]
[null,null,null,null,null,null,null,null,"Asian & White "]
[null,null,null,null,null,null,null,null,"Black/African Am. & White "]
[null,null,null,null,null,null,null,null,"Am. Indian/Alaskan & Blk/African "]
[null,null,null,null,null,null,null,null,"Other Multi-Racial "]